{"text_format":"1","workbook":"xlsx","n_sheets":11,"sheets":["Основные данные","Титульный лист","Содержание","раздел1","раздел2","раздел3","раздел4","Подпись","Түсіндірме","Пояснение","Страны"],"not_rendered":{"charts":0,"images":2,"macros":0,"external_links":5,"defined_names":43,"comments":0,"pivot_tables":0},"unopened":[],"bounds":{"document_bytes":16777216,"sheet_cells":100000,"rows_first":2000,"rows_last":500,"rows_between":2000,"halvings":0,"cell_chars":16384,"cell_head_chars":4096},"cells_cut":0,"cells_raw":0,"read":"whole","date_system":"1900"}

{"sheet":"Основные данные","index":0,"n_rows":36,"n_cols":7,"rows_kept":36,"cut":false,"hidden":false,"merged":[[29,2,30,2],[33,2,33,6],[35,2,35,6],[23,3,23,6],[24,3,24,6],[25,3,25,6],[26,3,26,6],[27,3,27,6],[28,3,28,6],[22,3,22,6],[10,3,10,6],[11,3,11,6],[12,3,12,6],[13,3,13,6],[15,3,15,6],[16,3,16,6],[17,3,17,6],[18,3,18,6],[19,3,19,6],[20,3,20,6],[21,3,21,6],[9,3,9,6],[0,2,1,6],[3,2,4,6],[6,3,6,6],[7,3,7,6],[8,3,8,6]]}
[null,"Бейрезиденттермен  халықаралық операциялар туралы есеп","Темір жол, құбыр көлігі және электр энергиясын беру қызметтері туралы есеп\nОтчет об услугах железнодорожного, трубопроводного транспорта и передачи электроэнергии"]
[null,"Отчет о международных операциях с нерезидентами"]
[]
[null,null,"Негізгі мәліметтер\nОсновные данные"]
[]
[]
[null,null,"Есептің коды / Код отчета","pb_18_2025"]
[null,null,"Тілі / Язык заполнения *"]
[{"$f":"CONCATENATE(p1_enterprise)","v":{"$error":"#REF!"}},null,"Резидент типі / Тип резидента","Предприятие"]
[{"$f":"CONCATENATE(p1_enterprise)","v":{"$error":"#REF!"}},null,"Кәсіпорын / Предприятие"]
[null,null,"БСН / БИН",""]
[{"$f":"CONCATENATE(p1_bank)","v":""},null,"Шетелдік банктің атауы / Наименование иностранного банка",""]
[null,null,"Шетел банкінің елі / Страна иностранного банка"]
[null,null,"Есептік нөмірі / Учетный номер",""]
[null,null,"Кезең / Период","Тоқсан\nКвартал",null,"Жыл / Год"]
[null,null,"Есепті беру күні / Дата предоставления отчета"]
[{"$f":"CONCATENATE(p1_currency)","v":"АҚШ ДОЛЛАРЫ\nДОЛЛАР США"},null,"Валюта","АҚШ ДОЛЛАРЫ\nДОЛЛАР США"]
[null,null,"Т.А.Ә. Басшы немесе есепке қол қою функциясы жүктелген адам\nФ.И.О. Руководитель или лицо, на которое возложена функция по подписанию отчета",""]
[null,null,"Т.А.Ә. Бас бухгалтер немесе есепке қол қою функциясы жүктелген адам \nФ.И.О. Главный бухгалтер или лицо, на которое возложена функция по подписанию отчета",""]
[null,null,"Т.А.Ә. Орындаушының / Ф.И.О. Исполнителя",""]
[null,null,"Орындаушының телефоны / Телефон исполнителя",""]
["2\n1",null,"Стационарлық телефоны (респонденттің)\nСтационарный телефон (респондента)",""]
[{"$f":"CONCATENATE(p1_comment)","v":""},null,"Ұялы телефоны (респонденттің)\nМобильный телефон (респондента)"]
[null,null,"Мекенжайы (респонденттің) / Адрес (респондента)"]
[{"$f":"CONCATENATE(p1_address)","v":{"$error":"#REF!"}},null,"Электрондық пошта мекенжайы (респонденттің)\nАдрес электронной почты (респондента)",""]
[null,null,"Алғашқы статистикалық деректерді таратуға келісеміз\nСогласны на распространение первичных статистических данных *",""]
[null,null,"Түсініктемелер\nКомментарий",""]
[null,null,"Қазақстан Республикасы Ұлттық Банкі толтырады\nЗаполняется Национальным Банком Республики Казахстан"]
[null,null,"Есепті беру күні / Дата предоставления отчета"]
[null,null,"Бөлімдер\nРазделы",1,4,5,6]
["2\n1",null,null,true,true,true,false]
[]
[]
[null,{"$f":"C34","v":"* Аталған тармақ «Мемлекеттік статистика туралы» Қазақстан Республикасының 2010 жылғы 19 наурыздағы Заңының 8-бабының 5-тармағына сәйкес толтырылады\nДанный пункт заполняется согласно пункту 5 статьи 8 Закона Республики Казахстан от 19 марта 2010 года «О государственной статистике»"},"* Аталған тармақ «Мемлекеттік статистика туралы» Қазақстан Республикасының 2010 жылғы 19 наурыздағы Заңының 8-бабының 5-тармағына сәйкес толтырылады\nДанный пункт заполняется согласно пункту 5 статьи 8 Закона Республики Казахстан от 19 марта 2010 года «О государственной статистике»"]
[]
[null,{"$f":"C36","v":"Мемлекеттік статистиканың тиісті органдарына анық емес бастапқы статистикалық деректерді ұсыну және бастапқы статистикалық деректерді белгіленген мерзімде ұсынбау «Әкімшілік құқық бұзушылық туралы» Қазақстан Республикасы Кодексінің 497-бабында көзделген әкімшілік құқық бұзушылықтар болып табылады\nПредставление недостоверных и непредставление первичных статистических данных в соответствующие органы государственной статистики в установленный срок являются административными правонарушениями, предусмотренными статьей 497 Кодекса Республики Казахстан «Об административных правонарушениях»"},"Мемлекеттік статистиканың тиісті органдарына анық емес бастапқы статистикалық деректерді ұсыну және бастапқы статистикалық деректерді белгіленген мерзімде ұсынбау «Әкімшілік құқық бұзушылық туралы» Қазақстан Республикасы Кодексінің 497-бабында көзделген әкімшілік құқық бұзушылықтар болып табылады\nПредставление недостоверных и непредставление первичных статистических данных в соответствующие органы государственной статистики в установленный срок являются административными правонарушениями, предусмотренными статьей 497 Кодекса Республики Казахстан «Об административных правонарушениях»"]

{"sheet":"Титульный лист","index":1,"n_rows":107,"n_cols":21,"rows_kept":107,"cut":false,"hidden":false,"merged":[[105,15,106,15],[105,16,106,16],[105,17,106,17],[102,3,102,21],[105,6,106,6],[105,7,106,7],[105,8,106,8],[105,9,106,9],[105,10,106,10],[105,11,106,11],[105,12,106,12],[105,13,106,13],[105,14,106,14],[91,15,91,21],[92,15,92,21],[94,3,94,21],[95,3,95,21],[97,13,98,13],[97,16,98,16],[97,17,98,17],[97,18,98,18],[97,19,98,19],[85,15,85,21],[86,15,86,21],[87,15,87,21],[88,15,88,21],[89,15,89,21],[90,15,90,21],[79,15,79,21],[80,15,80,21],[81,15,81,21],[82,15,82,21],[83,15,83,21],[84,15,84,21],[73,15,73,21],[74,15,74,21],[75,15,75,21],[76,15,76,21],[77,15,77,21],[78,15,78,21],[66,3,66,22],[67,3,67,22],[68,18,68,21],[69,18,69,21],[70,18,70,21],[71,18,71,21],[60,3,60,22],[61,3,61,22],[62,3,62,22],[63,3,63,22],[64,3,64,22],[65,3,65,22],[54,3,54,22],[55,3,55,22],[56,3,56,22],[57,3,57,22],[58,3,58,22],[59,3,59,22],[48,3,48,22],[49,3,49,22],[50,3,50,22],[51,3,51,22],[52,3,52,22],[53,3,53,22],[42,3,42,22],[43,3,43,22],[44,3,44,22],[45,3,45,22],[46,3,46,22],[47,3,47,22],[36,3,36,22],[37,3,37,22],[38,3,38,22],[39,3,39,22],[40,3,40,22],[41,3,41,22],[30,3,30,22],[31,3,31,22],[32,3,32,22],[33,3,33,22],[34,3,34,22],[35,3,35,22],[24,3,24,22],[25,3,25,22],[26,3,26,22],[27,3,27,22],[28,3,28,22],[29,3,29,22],[18,3,18,22],[19,3,19,22],[20,3,20,22],[21,3,21,22],[22,3,22,22],[23,3,23,22],[15,3,15,22],[16,3,16,22],[17,3,17,22],[6,3,6,22],[7,3,7,22],[8,3,8,22],[9,3,9,22],[10,3,10,22],[11,3,11,22],[0,3,0,22],[1,3,1,22],[2,3,2,22],[3,3,3,22],[4,3,4,22],[5,3,5,22],[12,3,12,22],[13,3,13,22],[14,3,14,22]]}
[4,null,"3\n2\n1","Қазақстан Республикасында\nвалюталық операцияларды\nмониторингтеу қағидаларына"]
[4,null,null,{"$f":"CONCATENATE(VLOOKUP(p_report_current_id,p_report,COLUMN(p_report_pril),FALSE),\"-қосымша\")","v":"15-қосымша"}]
[4,null,null,{"$f":"CONCATENATE(\"Приложение \",VLOOKUP(p_report_current_id,p_report,COLUMN(p_report_pril),FALSE))","v":"Приложение 15"}]
[4,null,"3\n2\n1","к Правилам мониторинга\nвалютных операций в\nРеспублике Казахстан"]
[4]
[4,null,null,"Әкімшілік деректерді"]
[4,null,null,"жинау үшін арналған нысан"]
[4,null,null,"Форма, предназначенная для сбора"]
[4,null,null,"административных данных"]
[4]
[4,null,null,{"$f":"CONCATENATE(\"«\",VLOOKUP(p_report_current_id,p_report,COLUMN(p_report_name_2)-1,FALSE),\"»\")","v":"«Мемлекеттік басқару секторының  халықаралық операциялары, сыртқы активтері және міндеттемелері туралы есеп»"}]
[4,null,null,{"$f":"CONCATENATE(\"«\",VLOOKUP(p_report_current_id,p_report,COLUMN(p_report_name_2)-2,FALSE),\"»\")","v":"«Отчет о международных операциях, внешних активах и обязательствах сектора государственного управления»"}]
[4]
[4,null,null,{"$f":"CONCATENATE(\"Есепті кезең: \",IF(p1_year=\"\",\"________\",p1_year),\" жылғы \",IF(p1_quarter=\"\",\"__\",p1_quarter),\" тоқсан\")","v":"Есепті кезең: ________ жылғы __ тоқсан"}]
[4,null,null,{"$f":"CONCATENATE(\"Отчетный период: \",IF(p1_quarter=\"\",\"__\",p1_quarter),\" квартал \",IF(p1_year=\"\",\"________\",p1_year),\" года\")","v":"Отчетный период: __ квартал ________ года"}]
[4]
[4,null,null,{"$f":"CONCATENATE(\"Нысанның индексі: \",VLOOKUP(p_report_current_id,p_report,COLUMN(p_report_index),FALSE))","v":"Нысанның индексі: 7-ТБ\n7-ПБ"}]
[4,null,null,{"$f":"CONCATENATE(\"Индекс: \",VLOOKUP(p_report_current_id,p_report,COLUMN(p_report_index),FALSE))","v":"Индекс: 7-ТБ\n7-ПБ"}]
[4]
[4,null,null,"Кезеңділігі: тоқсан сайын"]
[4,null,null,"Периодичность: ежеквартальная"]
[4]
[4,null,null,{"$f":"CONCATENATE(\"Ақпаратты ұсынатын тұлғалар тобы: \",IF(VLOOKUP(p_report_current_id,p_report,COLUMN(p_report_type)+1,FALSE)=1,\"резидент\",\"резидент-заңды тұлға\"))","v":"Ақпаратты ұсынатын тұлғалар тобы: резидент"}]
[4,null,null,{"$f":"CONCATENATE(\"Круг лиц представляющих информацию: \",IF(VLOOKUP(p_report_current_id,p_report,COLUMN(p_report_type)+1,FALSE)=1,\"резидент\",\"юридическое лицо-резидент\"))","v":"Круг лиц представляющих информацию: резидент"}]
[4]
[4,null,null,"Есептік нөмір беру орны бойынша Қазақстан Республикасы Ұлттық Банкінің аумақтық филиалына ұсынылады"]
[4,null,null,"Представляется в территориальный филиал Национального Банка Республики Казахстан по месту присвоения учетного номера"]
[4]
[4,null,null,"Әкімшілік деректерге арналған нысан Қазақстан Республикасы Ұлттық Банкінің www.nationalbank.kz интернет-ресурсына орналастырылған"]
[4,null,null,"Форма административных данных размещена на интернет-ресурсе Национального Банка Республики Казахстан www.nationalbank.kz"]
[4]
[4,null,null,"Ұсыну мерзімі: есепті кезеңнен кейінгі айдың 10 (оныншы) күніне (қоса алғанда) дейін"]
[4,null,null,"Срок представления: до десятого числа (включительно) месяца, следующего за отчетным периодом"]
[5,null,null,"Шетелдік қаржылық емес ұйымдардың"]
[5,null,null,"Қазақстан Республикасында қызметін"]
[5,null,null,"жүзеге асыратын филиалдарының (өкілдіктерінің)"]
[5,null,null,"ақпарат ұсыну қағидаларына"]
[5,null,null,{"$f":"CONCATENATE(VLOOKUP(p_report_current_id,p_report,COLUMN(p_report_pril),FALSE),\"-қосымша\")","v":"15-қосымша"}]
[5,null,null,{"$f":"CONCATENATE(\"Приложение \",VLOOKUP(p_report_current_id,p_report,COLUMN(p_report_pril),FALSE))","v":"Приложение 15"}]
[5,null,null,"к Правилам представления"]
[5,null,null,"информации филиалами (представительствами)"]
[5,null,null,"иностранных нефинансовых организаций,"]
[5,null,null,"осуществляющими деятельность"]
[5,null,null,"в Республике Казахстан"]
[5]
[5,null,null,"Әкімшілік деректерді жинауға арналған нысан"]
[5,null,null,"Форма, предназначенная для сбора административных данных"]
[5]
[5,null,null,{"$f":"CONCATENATE(\"«\",VLOOKUP(p_report_current_id,p_report,COLUMN(p_report_name_2)-1,FALSE),\"»\")","v":"«Мемлекеттік басқару секторының  халықаралық операциялары, сыртқы активтері және міндеттемелері туралы есеп»"}]
[5,null,null,{"$f":"CONCATENATE(\"«\",VLOOKUP(p_report_current_id,p_report,COLUMN(p_report_name_2)-2,FALSE),\"»\")","v":"«Отчет о международных операциях, внешних активах и обязательствах сектора государственного управления»"}]
[5]
[5,null,null,{"$f":"CONCATENATE(\"Есепті кезең: \",IF(p1_year=\"\",\"________\",p1_year),\" жылғы \",IF(p1_quarter=\"\",\"__\",p1_quarter),\" тоқсан\")","v":"Есепті кезең: ________ жылғы __ тоқсан"}]
[5,null,null,{"$f":"CONCATENATE(\"Отчетный период: \",IF(p1_quarter=\"\",\"__\",p1_quarter),\" квартал \",IF(p1_year=\"\",\"________\",p1_year),\" года\")","v":"Отчетный период: __ квартал ________ года"}]
[5]
[5,null,null,{"$f":"CONCATENATE(\"Индексі: \",VLOOKUP(p_report_current_id,p_report,COLUMN(p_report_index),FALSE))","v":"Индексі: 7-ТБ\n7-ПБ"}]
[5,null,null,{"$f":"CONCATENATE(\"Индекс: \",VLOOKUP(p_report_current_id,p_report,COLUMN(p_report_index),FALSE))","v":"Индекс: 7-ТБ\n7-ПБ"}]
[5]
[5,null,null,"Кезеңділігі: тоқсан сайын"]
[5,null,null,"Периодичность: ежеквартальная"]
[5]
[5,null,"2\n1","Ұсынады: Шетелдік қаржылық емес ұйымдардың Қазақстан Республикасында қызметін жүзеге асыратын филиалдарының (өкілдіктерінің) ақпарат ұсыну қағидаларының 5-тармағына сәйкес қалыптастырылатын филиалдардың (өкілдіктердің) тізіміне енгізілген шетелдік қаржылық емес ұйымның филиалы (өкілдігі)"]
[5,null,"2\n1","Представляют: филиал (представительство) иностранной нефинансовой организации, включенный в список филиалов (представительств), формируемый в соответствии с пунктом 5 Правил представления информации филиалами (представительствами) иностранных нефинансовых организаций, осуществляющими деятельность в Республике Казахстан"]
[5]
[5,null,"2\n1","Нысан қайда ұсынылады: Қазақстан Республикасында қызметін бір жылдан астам жүзеге асыратын шетелдік қаржылық емес ұйымның филиалы (өкілдігі) орналасқан орны бойынша Қазақстан Республикасы Ұлттық Банкінің аумақтық филиалы"]
[5,null,"2\n1","Куда представляется форма: территориальный филиал Национального Банка Республики Казахстан по месту нахождения филиала (представительства) иностранной нефинансовой организации, осуществляющего деятельность в Республике Казахстан более одного года"]
[5]
[5,null,null,"Ұсыну мерзімі: есепті тоқсаннан кейінгі бірінші айдың жиырмасына (қоса алғанда) дейін"]
[5,null,null,"Срок представления: до двадцатого числа (включительно) первого месяца, следующего за отчетным кварталом"]
[1,6,null,null,null,null,null,null,null,null,null,null,null,null,null,null,null,null,"2025 жылғы 23 маусымдағы № 33"]
[1,6,null,null,null,null,null,null,null,null,null,null,null,null,null,null,null,null,"қаулыға 29-қосымша"]
[1,6,null,null,null,null,null,null,null,null,null,null,null,null,null,null,null,null,"Приложение 29 к постановлению"]
[1,6,null,null,null,null,null,null,null,null,null,null,null,null,null,null,null,null,"от 23 июня 2025 года № 33"]
[1]
[1,null,"2\n1",null,null,null,null,null,null,null,null,null,null,null,null,"Ақпаратты алушы органдар құпиялылығына кепілдік береді"]
[1,null,"2\n1",null,null,null,null,null,null,null,null,null,null,null,null,"Конфиденциальность гарантируется органами получателями информации"]
[1,null,"2\n1",null,null,null,null,null,null,null,null,null,null,null,null,"Ведомстволық статистикалық байқаудың статистикалық нысаны"]
[1,null,"2\n1",null,null,null,null,null,null,null,null,null,null,null,null,"Статистическая форма ведомственного статистического наблюдения"]
[1,11,"3\n2\n1",null,null,null,null,null,null,null,null,null,null,null,null,"Қазақстан Республикасы Ұлттық Банкінің аумақтық филиалына  респонденттің орналасқан жері бойынша ұсынылады"]
[1,11,"3\n2\n1",null,null,null,null,null,null,null,null,null,null,null,null,"Представляется территориальному филиалу Национального Банка Республики Казахстан по месту нахождения респондента"]
[1,1,"3\n2\n1",null,null,null,null,null,null,null,null,null,null,null,null,"Қазақстан Республикасы Ұлттық Банкінің аумақтық филиалына  респонденттің орналасқан жері бойынша ұсынылады"]
[1,1,"3\n2\n1",null,null,null,null,null,null,null,null,null,null,null,null,"Представляется территориальному филиалу Национального Банка Республики Казахстан по месту нахождения респондента"]
[1,2,"3\n2\n1",null,null,null,null,null,null,null,null,null,null,null,null,"Қазақстан Республикасы Ұлттық Банкінің аумақтық филиалына  респонденттің орналасқан жері бойынша ұсынылады"]
[1,2,"3\n2\n1",null,null,null,null,null,null,null,null,null,null,null,null,"Представляется территориальному филиалу Национального Банка Республики Казахстан по месту нахождения респондента"]
[1,3,"3\n2\n1",null,null,null,null,null,null,null,null,null,null,null,null,"Қазақстан Республикасы Ұлттық Банкінің аумақтық филиалына  респонденттің орналасқан жері бойынша ұсынылады"]
[1,3,"3\n2\n1",null,null,null,null,null,null,null,null,null,null,null,null,"Представляется территориальному филиалу Национального Банка Республики Казахстан по месту нахождения респондента"]
[1,4,"3\n2\n1",null,null,null,null,null,null,null,null,null,null,null,null,"Қазақстан Республикасы Ұлттық Банкінің аумақтық филиалына  респонденттің орналасқан жері бойынша ұсынылады"]
[1,4,"3\n2\n1",null,null,null,null,null,null,null,null,null,null,null,null,"Представляется территориальному филиалу Национального Банка Республики Казахстан по месту нахождения респондента"]
[1,6,"3\n2\n1",null,null,null,null,null,null,null,null,null,null,null,null,"Қазақстан Республикасы Ұлттық Банкінің аумақтық филиалына  респонденттің орналасқан жері бойынша ұсынылады"]
[1,6,"3\n2\n1",null,null,null,null,null,null,null,null,null,null,null,null,"Представляется территориальному филиалу Национального Банка Республики Казахстан по месту нахождения респондента"]
[1,7,"3\n2\n1",null,null,null,null,null,null,null,null,null,null,null,null,"Қазақстан Республикасы Ұлттық Банкінің аумақтық филиалына  респонденттің орналасқан жері бойынша ұсынылады"]
[1,7,"3\n2\n1",null,null,null,null,null,null,null,null,null,null,null,null,"Представляется территориальному филиалу Национального Банка Республики Казахстан по месту нахождения респондента"]
[1,8,null,null,null,null,null,null,null,null,null,null,null,null,null,"Қазақстан Республикасының Ұлттық Банкіне ұсынылады"]
[1,8,null,null,null,null,null,null,null,null,null,null,null,null,null,"Представляется  Национальному Банку Республики Казахстан"]
[1]
[1,null,"2\n1","Темір жол, құбыр көлігі және электр энергиясын беру қызметтері туралы есеп"]
[1,null,"2\n1","Отчет об услугах железнодорожного, трубопроводного транспорта и передачи электроэнергии"]
[1]
[1,null,null,"Индексі",null,"18-ТБ",null,"Тоқсандық",null,null,"Есепті кезең",null,null,{"$f":"CONCATENATE(p1_quarter)","v":""},"тоқсан",null,{"$f":"LEFT(p1_year,1)","v":""},{"$f":"LEFT(RIGHT(p1_year,3),1)","v":""},{"$f":"LEFT(RIGHT(p1_year,2),1)","v":""},{"$f":"RIGHT(p1_year,1)","v":""},"жыл"]
[1,null,null,"Индекс",null,"18-ПБ",null,"Квартальная",null,null,"Отчетный период",null,null,null,"квартал",null,null,null,null,null,"год"]
[1]
[1,11,null,"Респонденттер тізіміне енгізілген заңды тұлғалар ұсынады"]
[1,11,null,"Представляют юридические лица, включенные в перечень респондентов"]
[1,6,"2\n1","Тапсыру мерзімі: есепті кезеңнен кейін 30-нан кешіктірмей"]
[1,6,null,"Срок представления: не позднее 30 числа после отчетного периода"]
[1]
[1,null,null,"БСН коды",null,null,{"$f":"LEFT(p1_bin,1)","v":""},{"$f":"LEFT(RIGHT(p1_bin,11),1)","v":""},{"$f":"LEFT(RIGHT(p1_bin,10),1)","v":""},{"$f":"LEFT(RIGHT(p1_bin,9),1)","v":""},{"$f":"LEFT(RIGHT(p1_bin,8),1)","v":""},{"$f":"LEFT(RIGHT(p1_bin,7),1)","v":""},{"$f":"LEFT(RIGHT(p1_bin,6),1)","v":""},{"$f":"LEFT(RIGHT(p1_bin,5),1)","v":""},{"$f":"LEFT(RIGHT(p1_bin,4),1)","v":""},{"$f":"LEFT(RIGHT(p1_bin,3),1)","v":""},{"$f":"LEFT(RIGHT(p1_bin,2),1)","v":""},{"$f":"RIGHT(p1_bin,1)","v":""}]
[1,null,null,"Код БИН"]

{"sheet":"Содержание","index":2,"n_rows":11,"n_cols":4,"rows_kept":11,"cut":false,"hidden":false,"merged":[[1,1,1,3],[3,1,4,1],[5,1,6,1],[7,1,8,1],[9,1,10,1]]}
[]
[null,"Мазмұны\nСодержание"]
[]
[null,null,"1-бөлім.","Темір жол көлігінің қызметтері, мың Америка Құрама Штаттарының (бұдан әрі – АҚШ) доллары"]
[null,null,"Раздел 1","Услуги железнодорожного транспорта, в тысячах долларов Соединенных Штатов Америки (далее – США)"]
[null,null,"2- бөлім.","Құбыр көлігі, электр энергиясын тасымалдау қызметтері, мың АҚШ доллары"]
[null,null,"Раздел 2","Услуги трубопроводного транспорта, передачи электроэнергии, в тысячах долларов США"]
[null,null,"3- бөлім.","Өзге қызмет түрлері, мың АҚШ доллары"]
[null,null,"Раздел 3","Прочие виды международных услуг, в тысячах долларов США"]
[null,null,"4- бөлім.","Ағымдағы және күрделі трансферттер, мың АҚШ доллары"]
[null,null,"Раздел 4","Текущие и капитальные трансферты, в тысячах долларов США"]

{"sheet":"раздел1","index":3,"n_rows":14,"n_cols":5,"rows_kept":14,"cut":false,"hidden":false,"merged":[[1,1,1,12],[3,4,3,11]]}
[]
[null,"1-бөлім. Темір жол көлігінің қызметтері, мың АҚШ доллары\nРаздел 1. Услуги железнодорожного транспорта, тысяч долларов США "]
[]
[null,"Көрсеткіштің атауы\nНаименование показателя","Жол коды\nКод строки","Барлығы\nВсего","Әріптес елдердің атауы\nНаименование стран-партнеров"]
[null,"А","B",1,2]
[null,"Жүктерді тасымалдау\nПеревозка грузов"]
[null,"Бейрезиденттердің жүктерін Қазақстан аумағы арқылы транзиттік тасымалдау\nТранзитные перевозки грузов нерезидентов через территорию Казахстана",10]
[null,"Мемлекетаралық жүк тасымалдау үшін есеп айырысулар (алуға тиесілі)\nРасчеты за межгосударственные грузовые перевозки (причитающиеся к получению)",20]
[null,"Мемлекетаралық жүк тасымалдау үшін есеп айырысулар (төлеуге тиесілі) \nРасчеты за межгосударственные грузовые перевозки (причитающиеся к выплате)",60]
[null,"Жолаушыларды тасымалдау\nПеревозка пассажиров"]
[null,"Бейрезиденттерден халықаралық қатынаста жолаушылар тасымалы үшін түсетін түсімдер\nПоступления от нерезидентов за пассажирские перевозки в международном сообщении",90]
[null,"Бейрезиденттерге халықаралық жолаушылар тасымалы үшін төлемдер\nПлатежи нерезидентам за пассажирские перевозки международном сообщении",110]
[null,"Қазақстанның темір жол желісін бейрезидент темір жол кәсіпорындарының пайдалануы\nИспользование железнодорожной сети Казахстана железнодорожными пассажирскими предприятиями-нерезидентами",120]
[null,"Қазақстанның темір жол желісін бейрезидент темір жол кәсіпорындарының пайдалануы\nИспользование железнодорожной сети иностранных государств железнодорожными пассажирскими предприятиями-резидентами",130]

{"sheet":"раздел2","index":4,"n_rows":17,"n_cols":5,"rows_kept":17,"cut":false,"hidden":false,"merged":[[1,1,1,12],[3,4,3,11]]}
[]
[null,"2- бөлім. Құбыр көлігінің, электр энергиясын тасымалдау қызметтері, мың АҚШ доллары\nРаздел 2. Услуги трубопроводного транспорта, передачи электроэнергии, тысяч долларов США "]
[]
[null,"Көрсеткіштің атауы\nНаименование показателя","Жол коды\nКод строки","Барлығы\nВсего","Әріптес елдердің атауы\nНаименование стран-партнеров"]
[null,"А","B",1,2]
[]
[null,"А","Б",1,2]
[null,"Бейрезиденттердің жүктерін Қазақстанның аумағы арқылы транзиттік тасымалдау\nТранзитные перевозки грузов нерезидентов через территорию Казахстана",210]
[null,"Қазақстан экспортын тасымалдау\nПеревозки экспорта Казахстана",220]
[null,"бейрезидент үшін\nдля нерезидентов",221]
[null,"резиденттер үшін\nдля резидентов",222]
[null,"Қазақстаннық жүктерді шет мемлекеттердің аумағы арқылы транзиттік тасымалдау\nТранзитные перевозки казахстанских грузов по территории иностранных государств",230]
[null,"Қазақстаннық жүктерді шет мемлекеттердің аумағы арқылы тасымалдау\nПеревозки казахстанских грузов по территории иностранных государств",240]
[null,"Бейрезиденттерге көрсетілген тиеу-түсіру жұмыстары және өзге де қосалқы көлік қызметтері\nПогрузочно-разгрузочные работы и прочие вспомогательные транспортные услуги, предоставленные нерезидентам",250]
[null,"Бейрезиденттерден алынған тиеу-түсіру жұмыстары және өзге де қосалқы көлік қызметтері\nПогрузочно-разгрузочные работы и прочие вспомогательные транспортные услуги, полученные от нерезидентов",260]
[null,"Бейрезиденттерге көрсетілген (экспедиторлық қызметтерді қоса алғанда) агенттік қызметтер үшін комиссиялық сыйақы\nКомиссионное вознаграждение за агентские услуги (включая экспедиторские), предоставленные нерезидентам",270]
[null,"Бейрезиденттерден алынған (экспедиторлық қызметтерді қоса алғанда) агенттік қызметтер үшін комиссиялық сыйақы\nКомиссионное вознаграждение за агентские услуги (включая экспедиторские), полученные от нерезидентов",280]

{"sheet":"раздел3","index":5,"n_rows":41,"n_cols":5,"rows_kept":41,"cut":false,"hidden":false,"merged":[[3,4,3,11],[1,1,1,11]]}
[]
[null,"3-бөлім. Халықаралық қызметтердің өзге түрлері, мың АҚШ доллары\nРаздел 3. Прочие виды международных услуг, тысяч долларов США"]
[]
[null,"Көрсеткіштің атауы\nНаименование показателя","Жол коды\nКод строки","Барлығы\nВсего","Әріптес елдердің атауы\nНаименование стран-партнеров"]
[null,"А","B",1,2]
[null,"Бейрезиденттерге көрсетілген қызметтер\nУслуги, предоставленные нерезидентам"]
[null,"Ғимараттарды, темір жол құрылыстарын, құбырларды, электр желілерін жөндеу\nРемонт зданий, железнодорожных сооружений, трубопроводов, линий электропередач",310]
[null,"Басқа да жөндеу және техникалық қызмет көрсету бойынша жұмыстар\nУслуги по прочему ремонту и техническому обслуживанию",320]
[null,"Қаржылық қызметтері\nФинансовые услуги",330]
[null,"Телекоммуникациялық қызметтер (берілетін ақпарат құнын есептемегенде)\nТелекоммуникационные услуги (без учета стоимости передаваемой информации)",340]
[null,"Компьютерлік қызметтер (компьютерлерді жөндеу және техникалық қызмет көрсетуді қосқанда)\nКомпьютерные услуги (включая ремонт и техническое обслуживание компьютеров)",350]
[null,"Ақпараттық агенттіктердің қызметтері және өзге ақпараттық қызметтер\nУслуги информационных агентств и прочие информационные услуги",360]
[null,"Әртүрлі іскерлік қызметтер, оның ішінде:\nРазные деловые услуги, в том числе:",370]
[null,"заңгерлік\nюридические",371]
[null,"бухгалтерлік, аудиторлық\nбухгалтерские, аудиторские",372]
[null,"бизнес және басқару бойынша консультациялық қызметтер\nуслуги по консультации бизнеса и управления",373]
[null,"сәулет, инженерлік және басқа да техникалық қызметтер\nархитектурные, инженерные и прочие технические услуги",374]
[null,"жабдықтардың қызметкерсіз операциялық лизингі (жалдау) (жолаушыларды, жүктерді тасымалдау үшін көлік құралдарын жалға беруді қоса алғанда)\nоперационный лизинг (аренда) оборудования без персонала (включая аренду транспортных средств для перевозки пассажиров, грузов)",375]
[null,"үлестіру желілерінің, жұмысқа орналастыру және басқа да іскерлік қызметтер\nуслуги распределительных сетей, трудоустройства и прочие деловые услуги",376]
[null,"Зияткерлік меншікті пайдалану үшін төлем\nПлата за использование интеллектуальной собственности",380]
[null,"Басқа қызметтер (есеп жазбасында толық көрсету)\nПрочие услуги (расшифровать в примечании к отчету)",390]
[null,"Бейрезиденттерден алынған қызметтер\nУслуги, полученные от нерезидентов"]
[null,"Ғимараттарды, темір жол құрылыстарын, құбырларды, электр желілерін жөндеу\nРемонт зданий, железнодорожных сооружений, трубопроводов, линий электропередач",410]
[null,"Басқа да жөндеу және техникалық қызмет көрсету бойынша жұмыстар\nУслуги по прочему ремонту и техническому обслуживанию",420]
[null,"Қаржылық қызметтері\nФинансовые услуги",430]
[null,"Телекоммуникациялық қызметтер (берілетін ақпарат құнын есептемегенде)\nТелекоммуникационные услуги (без учета стоимости передаваемой информации)",440]
[null,"Компьютерлік қызметтер (компьютерлерді жөндеу және техникалық қызмет көрсетуді қосқанда)\nКомпьютерные услуги (включая ремонт и техническое обслуживание компьютеров)",450]
[null,"Ақпараттық агенттіктердің қызметтері және өзге ақпараттық қызметтер\nУслуги информационных агентств и прочие информационные услуги",460]
[null,"Әртүрлі іскерлік қызметтер, оның ішінде:\nРазные деловые услуги, в том числе:",470]
[null,"заңгерлік\nюридические",471]
[null,"бухгалтерлік, аудиторлық\nбухгалтерские, аудиторские",472]
[null,"бизнес және басқару бойынша консультациялық қызметтер\nуслуги по консультации бизнеса и управления",473]
[null,"сәулет, инженерлік және басқа да техникалық қызметтер\nархитектурные, инженерные и прочие технические услуги",474]
[null,"жабдықтардың қызметкерсіз операциялық лизингі (жалдау) (жолаушыларды, жүктерді тасымалдау үшін көлік құралдарын жалға беруді қоса алғанда)\nоперационный лизинг (аренда) оборудования без персонала (включая аренду транспортных средств для перевозки пассажиров, грузов)",475]
[null,"үлестіру желілерінің, жұмысқа орналастыру және басқа да іскерлік қызметтер\nуслуги распределительных сетей, трудоустройства и прочие деловые услуги",476]
[null,"Зияткерлік меншікті пайдалану үшін төлем\nПлата за использование интеллектуальной собственности",480]
[null,"Жеке тұлғаларға қызмет көрсету және мәдениет пен демалыс саласындағы қызметтер, оның ішінде:\nУслуги частным лицам и услуги в сфере культуры и отдыха, в том числе:",490]
[null,"Қазақстан аумағында бейрезиденттерді оқыту\nобучение нерезидентов, находящихся на территории Казахстана",491]
[null,"шетелдегі бейрезиденттерді оқыту (қашықтан, қазақстандық оқытушылардың шығуы)\nобучение нерезидентов, находящихся за рубежом (дистанционно, выезд казахстанских преподавателей)",492]
[null,"жеке тұлғаларға өзге де қызметтер және мәдениет пен демалыс саласындағы өзге де қызметтер\nпрочие услуги частным лицам и прочие услуги в сфере культуры и отдыха",493]
[null,"Басқа қызметтер (есеп жазбасында толық көрсету)\nПрочие услуги (расшифровать в примечании к отчету)",494]

{"sheet":"раздел4","index":6,"n_rows":11,"n_cols":4,"rows_kept":11,"cut":false,"hidden":false,"merged":[[1,0,1,10],[3,3,3,10]]}
[]
["4-бөлім. Ағымдағы және күрделі трансферттер, мың АҚШ доллары\nРаздел 4. Текущие и капитальные трансферты, тысяч долларов США"]
[]
["Көрсеткіштің атауы\nНаименование показателя","Жол коды\nКод строки","Барлығы\nВсего","Әріптес елдердің атауы\nНаименование стран-партнеров"]
["А","B",1,2]
["Бейрезиденттерге төленген салықтар\nНалоги, уплаченные нерезидентам",500]
["Бейрезиденттердің сауда палаталарына, салалық қауымдастықтарына кіретін коммерциялық емес ұйымдарға мүшелік жарналар немесе қатысуға жазылудағы бейрезиденттерге төленген төлемдер\nПлатежи нерезидентам членских взносов или подписка на участие  в некоммерческих организациях-нерезидентах, включающих отраслевые ассоциации",501]
["Бейрезиденттерден өсімпұл, айыппұл төлемдері және басқа да ағымдағы трансферттер түріндегі түсімдер\nПоступления от нерезидентов в виде пени, штрафных платежей и прочих текущих трансферт",502]
["Бейрезиденттерге өсімпұл, айыппұл төлемдері және басқа да ағымдағы трансферттер түріндегі төлемдер\nПлатежи нерезидентам в виде пени, штрафных платежей и прочих текущих трансферт",503]
["Бейрезиденттерден алынған күрделі трансферттер\nКапитальные трансферты, полученные от нерезидентов",504]
["Бейрезиденттерге ұсынылған күрделі трансферттер\nКапитальные трансферты, предоставленные нерезидентам",505]

{"sheet":"Подпись","index":7,"n_rows":68,"n_cols":14,"rows_kept":68,"cut":false,"hidden":false,"merged":[[65,2,67,14],[57,2,58,6],[57,7,57,11],[57,13,57,14],[58,7,58,11],[58,13,58,14],[62,2,64,14],[56,7,56,11],[56,13,56,14],[49,3,49,7],[49,9,49,11],[50,3,50,7],[50,9,50,11],[52,7,52,11],[52,13,52,14],[53,2,54,6],[53,7,53,11],[53,13,53,14],[54,7,54,11],[54,13,54,14],[40,4,40,6],[40,8,40,11],[45,6,45,10],[46,6,46,10],[48,3,48,7],[48,9,48,11],[39,4,39,6],[39,8,39,11],[26,3,26,4],[26,6,26,10],[26,12,26,14],[27,3,27,4],[27,6,27,10],[28,3,28,4],[28,6,28,10],[32,3,33,14],[35,3,36,6],[35,10,36,14],[38,4,38,6],[38,8,38,11],[23,8,23,14],[7,2,7,4],[7,8,7,14],[10,3,10,4],[10,6,10,10],[10,12,10,14],[11,3,11,4],[11,6,11,10],[12,3,12,4],[12,6,12,10],[17,3,17,13],[21,8,21,14],[22,8,22,14],[0,4,0,13],[1,3,1,14],[5,2,5,4],[5,8,5,14],[6,2,6,4],[6,8,6,14]]}
[4,null,"Ескертпе:"]
[4,null,"Примечание:",{"$f":"CONCATENATE(Подпись)","v":""}]
[4]
[4,null,"Басшы (Бас бухгалтер)"]
[4,null,"Руководитель (Главный бухгалтер)"]
[4,null,{"$f":"CONCATENATE(p1_position)","v":""},null,null,null,null,null,{"$f":"CONCATENATE(p1_position_fio)","v":""}]
[4,null,"(лауазымы)",null,null,null,"(қолы)",null,"(тегі, аты, әкесінің аты (бар болса))"]
[4,null,"(должность)",null,null,null,"(подпись)",null,"(фамилия, имя, отчество (при наличии))"]
[4]
[4,null,"Орындаушы",null,null,null,null,null,null,null,null,"телефоны"]
[4,null,"Исполнитель",null,null,null,{"$f":"CONCATENATE(p1_executor)","v":{"$error":"#REF!"}},null,null,null,null,"телефон",{"$f":"CONCATENATE(p1_executor_phone)","v":{"$error":"#REF!"}}]
[4,null,null,"(қолы)",null,null,"(тегі, аты, әкесінің аты (бар болса))"]
[4,null,null,"(подпись)",null,null,"(фамилия, имя, отчество (при наличии))"]
[4]
[4,null,{"$f":"IF(p1_report_date=\"\",\"20__ жылғы «____» ___________\",CONCATENATE(YEAR(p1_report_date),\" жылғы «\",DAY(p1_report_date),\"» \",VLOOKUP(MONTH(p1_report_date),p_month,COLUMN(p_month_name)-1,FALSE)))","v":"20__ жылғы «____» ___________"}]
[4,null,{"$f":"IF(p1_report_date=\"\",\"«____» ___________ 20___ года\",CONCATENATE(\"«\",DAY(p1_report_date),\"» \",VLOOKUP(MONTH(p1_report_date),p_month,COLUMN(p_month_name)-2,FALSE),\" \",YEAR(p1_report_date),\" года\"))","v":"«____» ___________ 20___ года"}]
[5,33,"Ескертпе"]
[5,33,"Примечание",{"$f":"CONCATENATE(Подпись)","v":""}]
[5,33]
[5,null,"Бас бухгалтер (ол болмаған кезеңде – оның орнындағы адам)"]
[5,null,"Главный бухгалтер (в период его отсутствия – лицо, его замещающее)"]
[5,null,null,null,null,null,null,null,{"$f":"CONCATENATE(p1_accountant)","v":{"$error":"#REF!"}}]
[5,null,null,null,null,null,"(қолы)",null,"(тегі, аты, әкесінің аты (бар болса))"]
[5,null,null,null,null,null,"(подпись)",null,"(фамилия, имя, отчество (при наличии))"]
[5]
[5,null,"Орындаушы",null,null,null,null,null,null,null,null,"телефоны"]
[5,null,"Исполнитель",null,null,null,{"$f":"CONCATENATE(p1_executor)","v":{"$error":"#REF!"}},null,null,null,null,"телефон",{"$f":"CONCATENATE(p1_executor_phone)","v":{"$error":"#REF!"}}]
[5,null,null,"(қолы)",null,null,"(тегі, аты, әкесінің аты (бар болса))"]
[5,null,null,"(подпись)",null,null,"(фамилия, имя, отчество (при наличии))"]
[5]
[5,null,{"$f":"IF(p1_report_date=\"\",\"20__ жылғы «____» ___________\",CONCATENATE(YEAR(p1_report_date),\" жылғы «\",DAY(p1_report_date),\"» \",VLOOKUP(MONTH(p1_report_date),p_month,COLUMN(p_month_name)-1,FALSE)))","v":"20__ жылғы «____» ___________"}]
[5,null,{"$f":"IF(p1_report_date=\"\",\"«____» ___________ 20___ года\",CONCATENATE(\"«\",DAY(p1_report_date),\"» \",VLOOKUP(MONTH(p1_report_date),p_month,COLUMN(p_month_name)-2,FALSE),\" \",YEAR(p1_report_date),\" года\"))","v":"«____» ___________ 20___ года"}]
[1,6,"Түсіндірме:",{"$f":"CONCATENATE(Подпись)","v":""}]
[1,6,"Комментарий: "]
[1]
[1,null,"Атауы",null,null,null,null,null,"Мекенжайы (респонденттің)"]
[1,null,"Наименование",null,null,null,null,null,"Адрес (респондента)"]
[1]
[1,null,"Телефоны (респонденттің)"]
[1,null,"Телефон (респондента)",null,"стационарлық",null,null,null,"ұялы"]
[1,null,null,null,"стационарный",null,null,null,"мобильный"]
[1]
[1,null,"Бастапқы статистикалық деректерді таратуға келісеміз",null,null,null,null,{"$f":"IF(p1_is_show_data=p_yes_name,p_yes_code,\"\")","v":""},"Бастапқы статистикалық деректерді таратуға келіспейміз"]
[1,null,"Согласны на распространение первичных статистических данных",null,null,null,null,null,"Не согласны на распространение первичных статистических данных"]
[1]
[1,null,"Электрондық пошта мекенжайы (респонденттің)"]
[1,null,"Адрес электронной почты (респондента)"]
[1]
[1,null,"Орындаушы"]
[1,null,"Исполнитель","тегі, аты және әкесінің аты (бар болған жағдайда)",null,null,null,null,null,"қолы, телефоны (орындаушының)"]
[1,null,null,"фамилия, имя и отчество (при его наличии)",null,null,null,null,null,"подпись, телефон (исполнителя)"]
[1]
[1,null,"Бас бухгалтер немесе есепке қол қою функциясы жүктелген адам"]
[1,null,"Главный бухгалтер или лицо, на которое возложена функция по подписанию отчета  ",null,null,null,null,"тегі, аты және әкесінің аты (бар болған жағдайда)",null,null,null,null,null,"қолы"]
[1,null,null,null,null,null,null,"фамилия, имя и отчество (при его наличии)",null,null,null,null,null,"подпись"]
[1]
[1,null,"Басшы немесе есепке қол қою функциясы жүктелген адам"]
[1,null,"Руководитель или лицо, на которое возложена функция по подписанию отчета",null,null,null,null,"тегі, аты және әкесінің аты (бар болған жағдайда)",null,null,null,null,null,"қолы"]
[1,null,null,null,null,null,null,"фамилия, имя и отчество (при его наличии)",null,null,null,null,null,"подпись"]
[1]
[1,null,"Ескертпе:"]
[1,null,"Примечание:"]
[1,null,"Мемлекеттік статистиканың тиісті органдарына анық емес бастапқы статистикалық деректерді ұсыну және бастапқы статистикалық деректерді белгіленген мерзімде ұсынбау Әкімшілік құқық бұзушылық туралы Қазақстан Республикасы Кодексінің 497-бабында көзделген әкімшілік құқық бұзушылықтар болып табылады."]
[1]
[1]
[1,null,"Представление недостоверных и непредставление первичных статистических данных в соответствующие органы государственной статистики в установленный срок являются административными правонарушениями, предусмотренными статьей 497 Кодекса Республики Казахстан «Об административных правонарушениях»"]
[1]
[1]

{"sheet":"Түсіндірме","index":8,"n_rows":30,"n_cols":1,"rows_kept":30,"cut":false,"hidden":false,"merged":[]}
[]
["«Теміржол, құбыр көлігі және электр энергиясын беру қызметтері туралы есеп» \n(индексі 18-ТБ, кезеңділігі тоқсандық) \nведомстволық статистикалық байқаудың статистикалық нысанын толтыру нұсқаулығы "]
[]
[]
[" 1-тарау. Жалпы ережелер"]
[]
["1. Осы «Теміржол, құбыр көлігі және электр энергиясын беру қызметтері туралы есеп» (индексі 18-ТБ, кезеңділігі тоқсандық) ведомстволық статистикалық байқаудың статистикалық нысанын (бұдан әрі – статистикалық нысан) толтыру нұсқаулығы «Мемлекеттік статистика туралы» Қазақстан Республикасы Заңының 13-бабының 2-1) тармақшасына сәйкес әзірленді және статистикалық нысанды толтыруды нақтылайды.\n2. Статистикалық нысанды респонденттер тізіміне енгізілген заңды тұлғалар ұсынады. Алдағы тоқсанға респонденттердің тізімін Қазақстан Республикасы Ұлттық Банкі қалыптастырады. Тізбедегі респондентті іздеу сервисі Қазақстан Республикасы Ұлттық Банкінің порталында «Электрондық анықтамалар» бөлімінде, «Төлем балансы бойынша есептілік нысандары бойынша респонденттердің тізбесі» шағын бөлімінде орналастырылған.\n3. Осы статистикалық нысанда сұратылатын ақпарат Қазақстан Республикасының төлем балансын жасауға арналған.\n4. Статистикалық нысанға басшы, бас бухгалтер немесе есепке қол қою функциясы жүктелген адамдар және орындаушы қол қояды."]
[]
[]
["2-тарау. Статистикалық нысанды толтыру"]
[]
["5. Статистикалық нысанды толтыру кезінде мынадай анықтамалар қолданылады:\n1) резиденттер:\nазаматтығына қарамастан, Қазақстан Республикасында бір жылдан астам тұратын жеке тұлғалар және Қазақстан Республикасының аумағынан тыс жерде бір жылдан аз уақытша жүрген Қазақстан Республикасының азаматтары. Мемлекеттік қызмет, білім алу және емделу мақсатында шетелде жүрген Қазақстан Республикасының азаматтары басқа елдердің аумағында болу мерзіміне қарамастан, резидент болып табылады;  \nхалықаралық ұйымдарды, шетелдік елшіліктерді, консулдықтарды және басқа дипломатиялық және ресми өкілдіктерді қоспағанда, Қазақстан Республикасының аумағында орналасқан заңды тұлғалар;\nҚазақстан Республикасының аумағынан тыс жерлерде орналасқан Қазақстанның елшіліктері, консулдықтары және басқа дипломатиялық және ресми өкілдіктері;\nосы тармақшаның үшінші абзацында және осы тармақтың \n2) тармақшасының үшінші абзацында көрсетілген заңды тұлғалардың Қазақстан Республикасының аумағында орналасқан филиалдары мен өкілдіктері;"]
["2) бейрезиденттер:\nазаматтығына қарамастан, шетелде бір жылдан астам тұратын жеке тұлғалар және Қазақстан Республикасының аумағында бір жылдан аз жүрген шетел азаматтары. Мемлекеттік қызмет, білім алу және емделу мақсатында жүрген шет мемлекеттердің азаматтары республика аумағында болу мерзіміне қарамастан, бейрезидент болып табылады;\nҚазақстан Республикасының елшіліктерін, консулдықтарын және басқа дипломатиялық және ресми өкілдіктерін қоспағанда, басқа мемлекеттердің аумағында орналасқан заңды тұлғалар;\nҚазақстан Республикасының аумағында орналасқан халықаралық ұйымдары, шетелдік елшіліктер, консулдықтар және басқа шетелдік дипломатиялық және ресми өкілдіктер;\n1) тармақшаның үшінші абзацында және осы тармақшаның үшінші абзацында көрсетілген заңды тұлғалардың басқа мемлекеттердің аумағында орналасқан филиалдары мен өкілдіктері."]
["6. Көрсетілген қызметтердің құны нақты төлем уақыты бойынша емес, оны есептеу кезінде (қызметтерді нақты көрсету күнінде) көрсетіледі. \nБарлық операциялар мың Америка Құрама Штаттарының (бұдан әрі – АҚШ) долларымен көрсетіледі. Өзге шетел валютасындағы операциялар алдымен теңгеге, содан кейін АҚШ долларына аударылады. Конвертациялау үшін Қазақстан Республикасының заңнамасына сәйкес қаржылық есептілікті қалыптастыру мақсатында қолданылатын валюта айырбастаудың нарықтық бағамдары пайдаланылады. Бұл ретте операцияларды конвертациялау үшін операцияларды жасау күніндегі тиісті бағамдар пайдаланылады. Теңгемен көрсетілген сомалар операцияларды жасау күніндегі АҚШ долларына да аударылады.\nВалюта кодтары ҚР ҰЖ 07 ISO 4217-2019 «Валюталар мен қорларды белгілеуге арналған кодтар» Қазақстан Республикасының ұлттық жіктеуішіне сәйкес көрсетіледі."]
["7. Барлық операциялар барлық елдер бойынша бөлінісінде көрсетіледі. Елдердің атаулары нысанның екінші бағанынан және одан әрі көрсетіледі. Егер елдер саны нысандағы бағандар санынан асып кетсе, жетіспейтін бағандар қосылады.\n1-3-бөлімдерде ел бойынша ҚР ҰЖ 06 ISO 3166-1-2016 «Елдердің атаулары мен олардың әкімшілік-аумақтық бөлімшелерінің бірліктерін көрсетуге арналған кодтар. 1-бөлім. Ел кодтары» Қазақстан Республикасының ұлттық жіктеуішіне сәйкес екі әріптен тұратын ел коды көрсетіледі."]
["4, 5-бөлімдердің жекелеген көрсеткіштерінің сипаттамасы:\nғимараттарды, теміржол құрылыстарын, құбырларды, электр беру желілерін жөндеу қызметтері (310, 410-жолдар) құрылыс учаскесін дайындауды, объектілер құрылысын, құрама конструкциялар мен жабдықтарды монтаждауды қамтитын құрылыс келісімшарттарының ажырамас бөлігі болып табылатын барлық тауарлар мен қызметтерді қамтиды. Бұрғылау және су ұңғымаларын салу және оператормен құрылыс немесе бөлшектеу жабдықтарын жалға алу, құрылыс жобасын басқару, құрылыс жөндеу сияқты басқа құрылыс қызметтерін қамтиды;"]
["жөндеу және техникалық қызмет көрсету қызметтері (320, 420-жолдар) құрылыс жөндеуін, компьютерлерді жөндеуді, мұнай және газ ұңғымаларын жөндеуді, сондай-ақ көлік құралдарын тазалау мен жинауды (өзге де көлік қызметтерін) қоспағанда, теміржол және құбыр жол және басқа да көлік құралдарын, сондай-ақ басқа да тауарларды күрделі және ағымдағы жөндеуді және оларға техникалық қызмет көрсетуді қамтиды. Жөндеу және техникалық қызмет көрсету ретінде көрсетілген шама жөндеуге дейінгі және кейінгі тауарлардың жалпы құнын емес, өндірілген жұмыстардың құнын білдіреді. Жөндеу құны мен техникалық қызмет көрсету жөндеу жұмыстарын жүргізетін тарап ұсынатын және жөндеу ақысына қосылатын материалдардың (ақысы бөлек алынатын қосалқы бөлшектер мен материалдар тауарлардың экспортына/импортына енгізілуі керек) кез келген қосалқы бөлшектерін қамтиды;"]
["қаржылық қызметтер (330, 430-жолдар) қаржылық мәмілелер бойынша (сақтандыру компаниялары мен зейнетақы қорларының қызметтерін қоспағанда) делдалдардың комиссиялық сыйақысын, оның ішінде: кредиттер бойынша комиссияны, бағалы қағаздар нарығына кәсіби қатысушылардың комиссиясын қамтиды. Сонымен қатар басқа да көмекші қаржылық қызметтерді (қаржылық кеңес беру, қаржылық активтерді басқару, кредиттік рейтинг қызметтері) қамтиды. Депозиттер, кредиттер, несиелер және қарыздар бойынша сыйақы қаржылық қызметтерге қосылмайды;\nтелекоммуникациялық қызметтер (340, 440-жолдар) телефон, телетайп, телеграф, радиохабар тарату, спутниктік байланыс, электрондық пошта, факс арқылы дыбысты, суретті немесе басқа ақпаратты беруді қамтиды, сонымен қатар іскерлік желілік қызметтерді, телеконференцияларды, ілеспе қызметтерді, интернет және оған қол жеткізуді қамтиды. Телекоммуникациялық қызметтерге берілетін ақпараттың құны, телефон желісін орнату қызметтері (құрылыс қызметтері), компьютерлік қызметтер, сондай-ақ дерекқор ақпаратына қол жеткізу және пайдалану кірмейді;"]
["компьютерлік қызметтер (350, 450-жолдар) тапсырыс берілген және тапсырыс берілмеген (жаппай өндірілген) бағдарламалық қамтылымды және онымен байланысты лицензияларды сату (сатып алу); техникалық құралдар мен бағдарламалық қамтылымды орнату; компьютерлік техника және бағдарламалық қамтылым саласындағы консалтинг; компьютерлер мен перифериялық құрылғыларды жөндеу және техникалық қызмет көрсету, деректерді өңдеу және оларды серверге орналастыру; жүйелік және қолданбалы бағдарламалық қамтылымның түпнұсқалары мен меншік құқықтарын сатып алу және сатуды қамтиды. Компьютерлік қызметтерге бағдарламалық қамтылымды ұдайы өндіруге және (немесе) таратуға (зияткерлік меншікті пайдалануға) арналған лицензиялар, нақты пайдаланушы үшін әзірленбеген оқу компьютерлік курстары (мәдениет және демалыс саласындағы жеке тұлғаларға көрсетілетін қызметтер) үшін төлемақы кірмейді;"]
["ақпараттық агенттіктердің қызметтері және басқа да ақпараттық қызметтер (360, 460-жолдар) бұқаралық ақпарат құралдарына жаңалықтар, фотосуреттер мен мақалалар беруді қамтиды; дерекқор құру, сақтау және тарату; пошта арқылы және басқа да тәсілдер арқылы жеткізумен мерзімді басылымдарға тікелей жеке жазылу; кітапхана және архив қызметтерін қамтиды;\nзаң қызметтері (371, 471-жолдар) заң кеңестері мен консультацияларды қамтиды; заң, сот және заң шығару процестерінде қызмет көрсету; фирмаларға жедел көмек көрсету; заң құжаттамасын дайындау; төрелік қызметтер;\nбухгалтерлік, аудиторлық қызметтер (372, 472-жолдар) бухгалтерлік есеп, шот-фактура, аудит және салық салу, қаржылық есептілікті жасау бойынша консультациялық қызметтерді қамтиды;"]
["бизнес және басқару бойынша консультация қызметтері (373, 473-жолдар) жалпы басқару консультацияларын, қаржылық менеджментті, кадрлық менеджментті, өндірістік менеджментті және басқа басқару консультацияларын; бизнес саясаты мен стратегиясы мәселелерінде консультацияларды, басшылықты және жедел көмекті; қоғаммен байланыс қызметтерін қамтиды. Құрылыс жобасына (құрылыс қызметтері) басшылық алып тасталады;\nархитектуралық, инженерлік және басқа да техникалық қызметтер \n(374, 474-жолдар) архитектуралық және құрылыс жобаларын әзірлеу; геологиялық барлау және іздестіру, картография; метеорологиялық қызметтер; өнім сапасын тексеру және сертификаттау, техникалық сынақтар мен талдаулар, техникалық бақылау; инженерлік кеңестер және қоршаған орта бойынша кеңестерді қамтиды. Тау-кен өндіру инженериясы пайдалы қазбаларды өндіруге байланысты қызметтерде көрінеді;"]
["персоналсыз жабдықтың операциялық лизингі (жалдау) (375, 475-жолдар) персоналсыз жабдықты жалға алуды, экипажсыз көлік құралдарын жалға алуды, жылжымалы бұрғылау платформаларын және өндіру, сақтау және түсіру үшін қалқымалы кемелерді жалға алуды қоса алғанда, жылжымайтын мүлікті жалға алуды қамтиды. Қаржы лизингі, телекоммуникациялық желілерді немесе қуаттарды жалға алу (телекоммуникациялық қызметтер), экипажы бар көлік құралдарын жалға алу (жүк немесе жолаушылар тасымалы) алып тасталады;\nбасқа да іскерлік қызметтер (376, 476-жолдар) электр энергиясын, суды, газды және т.б. бөлу жөніндегі қызметтерді қамтиды; кадрларды іріктеу, күзету, ауызша және жазбаша аударма, фотографиялық қызметтер, үй-жайларды жинау, тамақтандыруды ұйымдастыру, риэлторлық қызметтер, баспа қызметтері, ветеринариялық қызметтер және жоғарыда аталған қызметтерге енгізілмеген басқа да іскерлік қызметтер;"]
["зияткерлік меншікті пайдаланғаны үшін төлем (380, 480-жолдар) меншік құқығын пайдаланғаны үшін төлемді (мысалы патенттер, авторлық құқықтар, сауда белгілері, технологиялық процестер, дизайн және т.с.с.), сондай-ақ өндірілген түпнұсқалар мен прототиптерді (мысалы кітаптар мен қолжазбалар, компьютерлік бағдарламалық қамтылым, кинематографиялық жұмыстар, дыбыстық жазбалар және т.б.) ұдайы өндіруге және (немесе) таратуға арналған лицензиялар үшін төлемді қамтиды;\nбасқа да ағымдағы трансферттер (502, 503-жолдар) сақтандыру өтемақыларын төлеу болып табылмайтын келтірілген жарақаттар немесе мүлікке келтірілген залал үшін өтемақы төлемдерін, сондай-ақ негізгі капиталды жинақтауды қаржыландыруға байланысты емес сыйға тартулар мен қайырымдылықтарды қамтиды;"]
["күрделі трансферттерге (504, 505-жолдар) күрделі активтерге ауқымды залал келтіргені үшін өтемақы төлемдері (мысалы мұнайдың төгілуіне, қатты жарылыстарға, фармацевтикалық өнімдердің жанама әсерлеріне және т.б. байланысты), сондай-ақ негізгі капиталды жинақтауды қаржыландыру мақсаттарына ірі сыйлықтар мен қайырымдылықтар, мысалы жаңа оқу \nүй-жайларын салу бойынша шығысты жабуға университеттерге сыйға тарту кіреді.\nЕсептің түсіндірмесінде:\n1) басқа да қызмет түрлерінің талдамасын талап ететін қысқаша сипаттама (376, 390, 476, 493, 494-жолдар);\n2) респондент көрсету қажет деп есептейтін ақпарат көрсетіледі. "]
["8. Статистикалық нысан қағаз тасымалдағышта не электрондық цифрлық қолтаңбаны растау рәсімі сақтала отырып, «ҚР ҰБ Веб-порталы» автоматтандырылған ақпараттық шағын жүйесі арқылы электрондық тәсілмен ұсынылады. Бір статистикалық нысан әртүрлі тәсілдермен ұсынылған кезде ерте ұсынылған күн ұсыну күні болып саналады.\nСтатистикалық нысанға түзетулер (өзгертулер, толықтырулар) есепті кезең аяқталғаннан кейін 6 (алты) ай ішінде енгізіледі. "]
[]
[]
["3-тарау. Арифметикалық-логикалық бақылау"]
[]
["9. Арифметикалық-логикалық бақылау: \n1) 3-бөлім «Халықаралық қызметтердің өзге түрлері»:\nәрбір баған үшін 370-жол = 371 + 372 + 373 + 374 + 375 + 376 жолдар қосындысы;  \nәрбір баған үшін 470-жол = 471 + 472 + 473 + 474 + 475 + 476 жолдар қосындысы;  \nәрбір баған үшін 490-жол = 491 + 492 + 493 жолдар қосындысы;  \n2) Барлық бөлімдер үшін:\nбарлық жолдар үшін 1-баған = 2 + 3 +…+ n бағандар қосындысы"]

{"sheet":"Пояснение","index":9,"n_rows":30,"n_cols":1,"rows_kept":30,"cut":false,"hidden":false,"merged":[]}
[]
["Инструкция по заполнению статистической формы ведомственного статистического наблюдения «Отчет об услугах железнодорожного, трубопроводного транспорта и передачи электроэнергии»\n(индекс 18-ПБ, периодичность квартальная)"]
[]
[]
["Глава 1. Общие положения"]
[]
["1. Настоящая Инструкция по заполнению статистической формы ведомственного статистического наблюдения «Отчет об услугах железнодорожного, трубопроводного транспорта и передачи электроэнергии» (индекс 18-ПБ, периодичность квартальная) (далее – статистическая форма) разработана в соответствии с подпунктом 2-1) статьи 13 Закона Республики Казахстан «О государственной статистике» и детализирует заполнение статистической формы.\n2. Статистическую форму представляют юридические лица, включенные в перечень респондентов. Перечень респондентов формируется Национальным Банком Республики Казахстан на предстоящий квартал. Сервис по поиску респондента в перечне размещен на Портале Национального Банка Республики Казахстан в разделе «Электронные справки», подраздел «Перечень респондентов по формам отчетности по платежному балансу».\n3. Информация, запрашиваемая в данной статистической форме, предназначена для составления платежного баланса Республики Казахстан.\n4. Статистическую форму подписывает руководитель, главный бухгалтер или лица, на которых возложена функция по подписанию отчета, и исполнитель."]
[]
[]
["Глава 2. Заполнение статистической формы"]
[]
["5. При заполнении статистической формы применяются следующие определения:\n1) резиденты:\nфизические лица, проживающие в Республике Казахстан более одного года, независимо от гражданства, и граждане Республики Казахстан, временно находящиеся вне его территории менее одного года. Граждане Республики Казахстан, находящиеся за рубежом в целях государственной службы, образования и лечения, являются резидентами независимо от сроков их пребывания на территории других стран;\nюридические лица, находящиеся на территории Республики Казахстан, за исключением международных организаций, иностранных посольств, консульств и других дипломатических и официальных представительств;\nказахстанские посольства, консульства и другие дипломатические и официальные представительства, находящиеся за пределами Республики Казахстан;\nнаходящиеся на территории Республики Казахстан филиалы и представительства юридических лиц, указанных в абзаце третьем настоящего подпункта и абзаце третьем подпункта 2) настоящего пункта;"]
["2) нерезиденты:\nфизические лица, проживающие за границей более одного года, независимо от гражданства, и иностранные граждане, находящиеся на территории Республики Казахстан менее одного года. Граждане иностранных государств, находящиеся в целях государственной службы, образования и лечения, являются нерезидентами независимо от сроков их пребывания на территории республики;\nюридические лица, находящиеся на территории других государств, за исключением посольств, консульств и других дипломатических и официальных представительств Республики Казахстан;\nнаходящиеся на территории Республики Казахстан международные организации, иностранные посольства, консульства и другие иностранные дипломатические и официальные представительства;\nнаходящиеся на территории других государств филиалы и представительства юридических лиц, указанных в абзаце третьем подпункта 1) и абзаце третьем настоящего подпункта."]
["6. Стоимость оказанных услуг отражается на момент ее начисления (на дату фактического предоставления услуг), а не по времени фактической оплаты.\nВсе операции отражаются в тысячах долларов Соединенных Штатов Америки (далее – США). Операции в иных иностранных валютах переводятся сначала в тенге, а затем в доллары США. Для конвертации используются рыночные курсы обмена валют, применяемые в целях формирования финансовой отчетности в соответствии с законодательством Республики Казахстан. При этом для конвертации операций используются соответствующие курсы на дату совершения операций. Суммы, выраженные в тенге, переводятся также в доллары США на дату совершения операций.\nКоды валют указываются в соответствии с национальным классификатором Республики Казахстан НК РК 07 ISO 4217-2019 «Коды для представления валют и фондов»."]
["7. Все операции отражаются в разбивке по всем странам. Наименования стран указываются со второй графы формы и далее. Если количество стран превышает имеющееся в форме количество граф, добавляются недостающие графы.\nПо стране в разделах 1-3 указывается двухбуквенный код страны согласно \nнациональному классификатору Республики Казахстан НК РК 06 ISО \n3166-1-2016 «Коды для представления названий стран и единиц их \nадминистративно-территориальных подразделений. Часть 1. Коды стран»."]
["Описание отдельных показателей разделов 4, 5: \nуслуги по ремонту зданий, железнодорожных сооружений, трубопроводов, линий электропередач» (строки 310, 410) охватывают все товары и услуги, которые являются неотделимой частью строительных контрактов, включающих подготовку строительного участка, строительство объектов, монтаж сборных конструкций и оборудования. Включают бурение и постройку водных скважин, и другие строительные услуги, такие как аренда строительного или демонтажного оборудования с оператором, управление строительным проектом, строительный ремонт;"]
["услуги по ремонту и техническому обслуживанию (строки 320, 420) включают капитальный и текущий ремонт и техническое обслуживание железнодорожных и трубопроводных и других транспортных средств, а также других товаров, за исключением строительного ремонта, ремонта компьютеров, ремонта нефтяных и газовых скважин, а также чистки и уборки транспортных средств (прочие транспортные услуги). Величина отражаемая как ремонт и техническое обслуживание, представляет собой стоимость произведенных работ, а не валовую стоимость товаров до и после ремонта. Стоимость ремонта и техническое обслуживание включает любые запасные части материалы, предоставляемые ремонтирующей стороной и включаемые в плату за ремонт (запасные части и материалы, плата за которые взимается отдельно, должны включаться в экспорт/импорт товаров);"]
["финансовые услуги (строки 330, 430) включают комиссионное вознаграждение посредников по финансовым сделкам (за исключением услуг страховых компаний и пенсионных фондов), в том числе: комиссию по кредитам, комиссию профучастников рынка ценных бумаг. Включают также другие вспомогательные финансовые услуги (финансовые консультации, управление финансовыми активами, услуги кредитного рейтинга). Вознаграждение по депозитам, кредитам, ссудам и займам в финансовые услуги не включаются;\nтелекоммуникационные услуги (строки 340, 440) охватывают передачу звука, изображения или другой информации с помощью телефона, телетайпа, телеграфа, радиовещания, спутниковой связи, электронной почты, факса, а также включают деловые сетевые услуги, телеконференции, сопутствующие услуги, интернет и доступ к нему. Телекоммуникационные услуги не включают стоимость передаваемой информации, услуги по установке телефонной сети (строительные услуги), компьютерные услуги, а также доступ и использование информации базы данных (информационные услуги);"]
["компьютерные услуги (строки 350, 450) включают: продажу (приобретение) заказного и незаказного (массового производства) программного обеспечения и связанных с этим лицензий; установку технических средств и программного обеспечения; консалтинг в области компьютерной техники и программного обеспечения; ремонт и техническое обслуживание компьютеров и периферийных устройств, обработку данных и их размещение на сервере; покупку и продажу оригиналов и прав собственности на системное и прикладное программное обеспечение. В компьютерные услуги не включаются: плата за лицензии на воспроизводство и (или) распространение программного обеспечения (использование интеллектуальной собственности), разработанные для конкретного пользователя учебные компьютерные курсы (услуги частным лицам в сфере культуры и отдыха);"]
["услуги информационных агентств и прочие информационные услуги (строки 360, 460) включают предоставление новостей, фотографий и статей средствам массовой информации; создание, хранение и распространение баз данных; прямую индивидуальную подписку на периодические издания с доставкой по почте и иными способами; услуги библиотек и архивов;\nюридические услуги (строки 371, 471) включают юридические советы и консультации; предоставление услуг в юридических, судебных и законодательных процессах; оказание оперативной помощи фирмам; подготовка юридической документации; услуги арбитража;\nбухгалтерские, аудиторские услуги (строки 372, 472) охватывают консультационные услуги по бухгалтерскому учету, счетоводству, аудиту и налогообложению, составление финансовой отчетности;"]
["услуги по консультации бизнеса и управления (строки 373, 473) охватывают общие управленческие консультации, финансовый менеджмент, кадровый менеджмент, производственный менеджмент и другие управленческие консультации; консультации, руководство и оперативную помощь в вопросах бизнес политики и стратегии; услуги по связям с общественностью. Исключается руководство строительным проектом (строительные услуги);\nархитектурные, инженерные и прочие технические услуги (строки 374, 474) включают разработку архитектурных и строительных проектов; геологическую разведку и изыскания, картографию; метеорологические услуги; проверку и сертификацию качества продукции, технические испытания и анализы, технический контроль; инженерные консультации и консультации по окружающей среде. Горнодобывающая инженерия отражается в услугах, связанных с добычей полезных ископаемых;"]
["операционный лизинг (аренда) оборудования без персонала (строки 375, 475) охватывает аренду оборудования без персонала, аренду транспортных средств без экипажа, аренду недвижимости, включая аренду подвижных буровых платформ и плавучих судов для добычи, хранения и выгрузки. Исключаются финансовый лизинг, аренда телекоммуникационных линий или мощностей (телекоммуникационные услуги), аренда транспортных средств с экипажем (грузовые или пассажирские перевозки);\nуслуги распределительных сетей, трудоустройства и прочие деловые услуги (строки 376, 476) включают услуги по распределению электроэнергии, воды, газа и так далее; подбор кадров, охрану, устный и письменный перевод, фотографические услуги, уборку помещений, организацию питания, риэлтерские услуги, издательские услуги, ветеринарные услуги и другие деловые услуги, которые не включены в вышеперечисленные услуги;"]
["плата за использование интеллектуальной собственности (строки 380, 480) включает плату за пользование правами собственности (такими как патенты, авторские права, торговые марки, технологические процессы, дизайн и так далее), а также плату за лицензии на воспроизводство и (или) распространение произведенных оригиналов и прототипов (таких как книги и рукописи, компьютерное программное обеспечение, кинематографические работы, звукозаписи и так далее);\nтекущие трансферты (строки 502, 503) отражают выплаты компенсаций за нанесенные травмы или ущерб имуществу, которые не являются выплатами страховых возмещений, а также дарения и пожертвования, не связанные с финансированием накопления основного капитала;"]
["капитальные трансферты (строки 504, 505) включают компенсационные выплаты за нанесение масштабного ущерба капитальным активам (например, в связи с разливом нефти, сильными взрывами, побочными эффектами от фармацевтической продукции и так далее), а также крупные подарки и пожертвования на цели финансирования накопления основного капитала, например, дарения университетам на покрытие расходов по строительству новых учебных помещений.\nВ комментариях к отчету приводятся:\n1) краткое описание прочих видов услуг, требующих расшифровки (строки 376, 390, 476, 493, 494);\n2) информация, которую респондент считает необходимым отразить."]
["8. Статистическая форма представляется на бумажном носителе либо электронным способом посредством автоматизированной информационной подсистемы «Веб-портал НБ РК» с соблюдением процедур подтверждения электронной цифровой подписью. При представлении разными способами датой представления считается ранняя из дат.\nКорректировки (исправления, дополнения) в статистическую форму вносятся в течение 6 (шести) месяцев после завершения отчетного периода."]
[]
[]
["Глава 3. Арифметико-логический контроль"]
[]
["9. Арифметико-логический контроль:\n1) Раздел 3. «Прочие виды международных услуг»:\nстрока 370 = сумме строк 371 + 372 + 373 + 374 + 375 + 376 для каждой графы;\nстрока 470 = сумме строк 471 + 472 + 473 + 474 + 475 + 476 для каждой графы;\nстрока 490 = сумме строк 491 + 492 + 493 для каждой графы;\n2) Для всех разделов:\nграфа 1 = сумме граф 2 + 3 +…+ n для всех строк. "]

{"sheet":"Страны","index":10,"n_rows":264,"n_cols":11,"rows_kept":264,"cut":false,"hidden":false,"merged":[[0,4,0,10]]}
[{"$f":"VLOOKUP(\"p_country_name\",p_guide_show,2,FALSE)","v":1},null,null,"2\n1","Елдер\nСтраны"]
[null,"Перенос текста","Код слева","Код справа","№","Наименование на русском языке","Қазақ тіліндегі атауы","Атауы\nНаименование","ДЕЖЖ коды\nКод ОКСМ","ТМД белгісі\nПризнак СНГ","Белгісі\nПризнак"]
[243,0,null,null,1,"др.страны не СНГ","ТМД емес басқа елдер",{"$f":"CONCATENATE(IF(C3<>\"\",CONCATENATE(C3,\" \"),\"\"),IF(p_language_current_id=1,F3,IF(p_language_current_id=2,G3,IF(F3=G3,F3,CONCATENATE(G3,IF(B3=0,\" / \",CHAR(10)),F3)))),IF(D3<>\"\",CONCATENATE(\" \",D3),\"\"))","v":"ТМД емес басқа елдер / др.страны не СНГ"}," ",0,1]
[10,0,null,null,2,"АВСТРАЛИЯ","АВСТРАЛИЯ","АВСТРАЛИЯ","036",0,1]
[11,0,null,null,3,"АВСТРИЯ","АВСТРИЯ","АВСТРИЯ","040",0,1]
[8,0,null,null,4,"АЗЕРБАЙДЖАН","ӘЗЕРБАЙЖАН","ӘЗЕРБАЙЖАН / АЗЕРБАЙДЖАН","031",1,1]
[2,0,null,null,5,"АЛБАНИЯ","АЛБАНИЯ","АЛБАНИЯ","008",0,1]
[3,0,null,null,6,"АЛЖИР","АЛЖИР","АЛЖИР","012",0,1]
[4,0,null,null,7,"АМЕРИКАНСКОЕ CАМОА","АМЕРИКАН CАМОАСЫ","АМЕРИКАН CАМОАСЫ / АМЕРИКАНСКОЕ CАМОА","016",0,1]
[184,0,null,null,8,"АНГИЛЬЯ","АНГИЛЬЯ","АНГИЛЬЯ","660",0,1]
[6,0,null,null,9,"АНГОЛА","АНГОЛА","АНГОЛА","024",0,1]
[5,0,null,null,10,"АНДОРРА","АНДОРРА","АНДОРРА","020",0,1]
[291,0,null,null,11,"АНТАРКТИКА","АНТАРКТИКА","АНТАРКТИКА","010",0,1]
[7,0,null,null,12,"АНТИГУА И БАРБУДА","АНТИГУА Ж?НЕ БАРБУДА","АНТИГУА Ж?НЕ БАРБУДА / АНТИГУА И БАРБУДА","028",0,1]
[9,0,null,null,13,"АРГЕНТИНА","АРГЕНТИНА","АРГЕНТИНА","032",0,1]
[15,0,null,null,14,"АРМЕНИЯ","АРМЕНИЯ","АРМЕНИЯ","051",1,1]
[150,0,null,null,15,"АРУБА","АРУБА","АРУБА","533",0,1]
[109,0,null,null,16,"АТТОЛ ДЖОНСТОН (США)","АТТОЛ ДЖОНСТОН (США)","АТТОЛ ДЖОНСТОН (США)","396",0,1]
[1,0,null,null,17,"АФГАНИСТАН","АУҒАНСТАН","АУҒАНСТАН / АФГАНИСТАН","004",0,1]
[12,0,null,null,18,"БАГАМЫ","БАГАМ","БАГАМ / БАГАМЫ","044",0,1]
[14,0,null,null,19,"БАНГЛАДЕШ","БАНГЛАДЕШ","БАНГЛАДЕШ","050",0,1]
[16,0,null,null,20,"БАРБАДОС","БАРБАДОС","БАРБАДОС","052",0,1]
[13,0,null,null,21,"БАХРЕЙН","БАХРЕЙН","БАХРЕЙН","048",0,1]
[33,0,null,null,22,"БЕЛАРУСЬ","БЕЛАРУСЬ","БЕЛАРУСЬ","112",1,1]
[25,0,null,null,23,"БЕЛИЗ","БЕЛИЗ","БЕЛИЗ","084",0,1]
[17,0,null,null,24,"БЕЛЬГИЯ","БЕЛЬГИЯ","БЕЛЬГИЯ","056",0,1]
[57,0,null,null,25,"БЕНИН","БЕНИН","БЕНИН","204",0,1]
[18,0,null,null,26,"БЕРМУДЫ","БЕРМУД","БЕРМУД / БЕРМУДЫ","060",0,1]
[30,0,null,null,27,"БОЛГАРИЯ","БОЛГАРИЯ","БОЛГАРИЯ","100",0,1]
[20,0,null,null,28,"БОЛИВИЯ, МНОГОНАЦИОНАЛЬНОЕ ГОСУДАРСТВО БОЛИВИЯ","БОЛИВИЯ, БОЛИВИЯ К?П ?ЛТТЫ МЕМЛЕКЕТІ","БОЛИВИЯ, БОЛИВИЯ К?П ?ЛТТЫ МЕМЛЕКЕТІ / БОЛИВИЯ, МНОГОНАЦИОНАЛЬНОЕ ГОСУДАРСТВО БОЛИВИЯ","068",0,1]
[300,0,null,null,29,"БОНЭЙР, СИНТ-ЭСТАТИУС И САБА","БОНЭЙР, СИНТ-ЭСТАТИУС Ж?НЕ САБА","БОНЭЙР, СИНТ-ЭСТАТИУС Ж?НЕ САБА / БОНЭЙР, СИНТ-ЭСТАТИУС И САБА","535",0,1]
[21,0,null,null,30,"БОСНИЯ И ГЕРЦЕГОВИНА","БОСНИЯ ЖӘНЕ ГЕРЦЕГОВИНА","БОСНИЯ ЖӘНЕ ГЕРЦЕГОВИНА / БОСНИЯ И ГЕРЦЕГОВИНА","070",0,1]
[22,0,null,null,31,"БОТСВАНА","БОТСВАНА","БОТСВАНА","072",0,1]
[24,0,null,null,32,"БРАЗИЛИЯ","БРАЗИЛИЯ","БРАЗИЛИЯ","076",0,1]
[26,0,null,null,33,"БРИТАНСКАЯ ТЕРРИТОРИЯ В ИНДИЙСКОМ ОКЕАНЕ","БРИТАНСКАЯ ТЕРРИТОРИЯ В ИНДИЙСКОМ ОКЕАНЕ","БРИТАНСКАЯ ТЕРРИТОРИЯ В ИНДИЙСКОМ ОКЕАНЕ","086",0,1]
[29,0,null,null,34,"БРУНЕЙ-ДАРУССАЛАМ","БРУНЕЙ-ДАРУССАЛАМ","БРУНЕЙ-ДАРУССАЛАМ","096",0,1]
[232,0,null,null,35,"БУРКИНА-ФАСО","БУРКИНА-ФАСО","БУРКИНА-ФАСО","854",0,1]
[32,0,null,null,36,"БУРУНДИ","БУРУНДИ","БУРУНДИ","108",0,1]
[19,0,null,null,37,"БУТАН","БУТАН","БУТАН","064",0,1]
[152,0,null,null,38,"ВАНУАТУ","ВАНУАТУ","ВАНУАТУ","548",0,1]
[97,0,null,null,39,"ВЕНГРИЯ","ВЕНГРИЯ","ВЕНГРИЯ","348",0,1]
[235,0,null,null,40,"ВЕНЕСУЭЛА, БОЛИВАРИАНСКАЯ РЕСПУБЛИКА","ВЕНЕСУЭЛА, БОЛИВАРИЯ РЕСПУБЛИКАСЫ","ВЕНЕСУЭЛА, БОЛИВАРИЯ РЕСПУБЛИКАСЫ / ВЕНЕСУЭЛА, БОЛИВАРИАНСКАЯ РЕСПУБЛИКА","862",0,1]
[28,0,null,null,41,"ВИРГИНСКИЕ ОСТРОВА (ВЕЛИКОБРИТАНИЯ)","ВИРГИН АРАЛДАРЫ (ҰЛЫБРИТАНИЯ)","ВИРГИН АРАЛДАРЫ (ҰЛЫБРИТАНИЯ) / ВИРГИНСКИЕ ОСТРОВА (ВЕЛИКОБРИТАНИЯ)","092",0,1]
[231,0,null,null,42,"ВИРГИНСКИЕ ОСТРОВА, США","ВИРГИН АРАЛДАРЫ,  А?Ш","ВИРГИН АРАЛДАРЫ,  А?Ш / ВИРГИНСКИЕ ОСТРОВА, США","850",0,1]
[161,0,null,null,43,"Внешние малые острова США","АҚШ сыртқы шағын аралдары","АҚШ сыртқы шағын аралдары / Внешние малые острова США","581",0,1]
[196,0,null,null,44,"ВЬЕТНАМ","ВЬЕТНАМ","ВЬЕТНАМ","704",0,1]
[76,0,null,null,45,"ГАБОН","ГАБОН","ГАБОН","266",0,1]
[92,0,null,null,46,"ГАИТИ","ГАИТИ","ГАИТИ","332",0,1]
[78,0,null,null,47,"ГАМБИЯ","ГАМБИЯ","ГАМБИЯ","270",0,1]
[81,0,null,null,48,"ГАНА - РЕСПУБЛИКА ГАНА","ГАНА - ГАНА РЕСПУБЛИКАСЫ","ГАНА - ГАНА РЕСПУБЛИКАСЫ / ГАНА - РЕСПУБЛИКА ГАНА","288",0,1]
[87,0,null,null,49,"ГВАДЕЛУПА","ГВАДЕЛУПА","ГВАДЕЛУПА","312",0,1]
[89,0,null,null,50,"ГВАТЕМАЛА","ГВАТЕМАЛА","ГВАТЕМАЛА","320",0,1]
[90,0,null,null,51,"ГВИНЕЯ","ГВИНЕЯ","ГВИНЕЯ","324",0,1]
[174,0,null,null,52,"ГВИНЕЯ-БИСАУ","ГВИНЕЯ-БИСАУ","ГВИНЕЯ-БИСАУ","624",0,1]
[80,0,null,null,53,"ГЕРМАНИЯ","ГЕРМАНИЯ","ГЕРМАНИЯ","276",0,1]
[82,0,null,null,54,"ГИБРАЛТАР","ГИБРАЛТАР","ГИБРАЛТАР","292",0,1]
[95,0,null,null,55,"ГОНДУРАС","ГОНДУРАС","ГОНДУРАС","340",0,1]
[96,0,null,null,56,"ГОНКОНГ","ГОНКОНГ","ГОНКОНГ","344",0,1]
[86,0,null,null,57,"ГРЕНАДА","ГРЕНАДА","ГРЕНАДА","308",0,1]
[85,0,null,null,58,"ГРЕНЛАНДИЯ","ГРЕНЛАНДИЯ","ГРЕНЛАНДИЯ","304",0,1]
[84,0,null,null,59,"ГРЕЦИЯ","ГРЕЦИЯ","ГРЕЦИЯ","300",0,1]
[77,0,null,null,60,"ГРУЗИЯ","ГРУЗИЯ","ГРУЗИЯ","268",0,1]
[88,0,null,null,61,"ГУАМ","ГУАМ","ГУАМ","316",0,1]
[58,0,null,null,62,"ДАНИЯ","ДАНИЯ","ДАНИЯ","208",0,1]
[75,0,null,null,63,"ДЖИБУТИ","ДЖИБУТИ","ДЖИБУТИ","262",0,1]
[59,0,null,null,64,"ДОМИНИКА","ДОМИНИКА","ДОМИНИКА","212",0,1]
[60,0,null,null,65,"ДОМИНИКАНСКАЯ РЕСПУБЛИКА","ДОМИНИКАН РЕСПУБЛИКАСЫ",{"$f":"CONCATENATE(IF(C67<>\"\",CONCATENATE(C67,\" \"),\"\"),IF(p_language_current_id=1,F67,IF(p_language_current_id=2,G67,IF(F67=G67,F67,CONCATENATE(G67,IF(B67=0,\" / \",CHAR(10)),F67)))),IF(D67<>\"\",CONCATENATE(\" \",D67),\"\"))","v":"ДОМИНИКАН РЕСПУБЛИКАСЫ / ДОМИНИКАНСКАЯ РЕСПУБЛИКА"},"214",0,1]
[245,0,null,null,66,"др. страны СНГ","ТМД-ның басқа елдері","ТМД-ның басқа елдері / др. страны СНГ"," ",1,1]
[225,0,null,null,67,"ЕГИПЕТ - АРАБСКАЯ РЕСПУБЛИКА ЕГИПЕТ","ЕГИПЕТ - ЕГИПЕТ АРАБ РЕСПУБЛИКАСЫ","ЕГИПЕТ - ЕГИПЕТ АРАБ РЕСПУБЛИКАСЫ / ЕГИПЕТ - АРАБСКАЯ РЕСПУБЛИКА ЕГИПЕТ","818",0,1]
[241,0,null,null,68,"ЗАМБИЯ","ЗАМБИЯ","ЗАМБИЯ","894",0,1]
[202,0,null,null,69,"ЗАПАДНАЯ САХАРА","ЗАПАДНАЯ САХАРА","ЗАПАДНАЯ САХАРА","732",0,1]
[200,0,null,null,70,"ЗИМБАБВЕ","ЗИМБАБВЕ","ЗИМБАБВЕ","716",0,1]
[239,0,null,null,71,"ЙЕМЕН","ЙЕМЕН","ЙЕМЕН","887",0,1]
[104,0,null,null,72,"ИЗРАИЛЬ","ИЗРАИЛЬ","ИЗРАИЛЬ","376",0,1]
[99,0,null,null,73,"ИНДИЯ","ИНДИЯ","ИНДИЯ","356",0,1]
[100,0,null,null,74,"ИНДОНЕЗИЯ","ИНДОНЕЗИЯ","ИНДОНЕЗИЯ","360",0,1]
[111,0,null,null,75,"ИОРДАНИЯ","ИОРДАНИЯ","ИОРДАНИЯ","400",0,1]
[102,0,null,null,76,"ИРАК","ИРАК","ИРАК","368",0,1]
[101,0,null,null,77,"ИРАН, ИСЛАМСКАЯ РЕСПУБЛИКА","ИРАН, ИСЛАМ РЕСПУБЛИКАСЫ","ИРАН, ИСЛАМ РЕСПУБЛИКАСЫ / ИРАН, ИСЛАМСКАЯ РЕСПУБЛИКА","364",0,1]
[103,0,null,null,78,"ИРЛАНДИЯ","ИРЛАНДИЯ","ИРЛАНДИЯ","372",0,1]
[98,0,null,null,79,"ИСЛАНДИЯ","ИСЛАНДИЯ","ИСЛАНДИЯ","352",0,1]
[201,0,null,null,80,"ИСПАНИЯ","ИСПАНИЯ","ИСПАНИЯ","724",0,1]
[105,0,null,null,81,"ИТАЛИЯ","ИТАЛИЯ","ИТАЛИЯ","380",0,1]
[37,0,null,null,82,"КАБО-ВЕРДЕ","КАБО-ВЕРДЕ","КАБО-ВЕРДЕ","132",0,1]
[110,0,null,null,83,"КАЗАХСТАН","КАЗАХСТАН","КАЗАХСТАН","398",1,1]
[34,0,null,null,84,"КАМБОДЖА","КАМБОДЖА","КАМБОДЖА","116",0,1]
[35,0,null,null,85,"КАМЕРУН","КАМЕРУН","КАМЕРУН","120",0,1]
[36,0,null,null,86,"КАНАДА","КАНАДА","КАНАДА","124",0,1]
[177,0,null,null,87,"КАТАР","КАТАР","КАТАР","634",0,1]
[112,0,null,null,88,"КЕНИЯ","КЕНИЯ","КЕНИЯ","404",0,1]
[55,0,null,null,89,"КИПР","КИПР","КИПР","196",0,1]
[83,0,null,null,90,"КИРИБАТИ","КИРИБАТИ","КИРИБАТИ","296",0,1]
[43,0,null,null,91,"КИТАЙ","КИТАЙ","КИТАЙ","156",0,1]
[46,0,null,null,92,"Кокосовые острова или острова Килинг","Кокос аралдары немесе Килинг аралдары","Кокос аралдары немесе Килинг аралдары / Кокосовые острова или острова Килинг","166",0,1]
[47,0,null,null,93,"КОЛУМБИЯ","КОЛУМБИЯ","КОЛУМБИЯ","170",0,1]
[48,0,null,null,94,"КОМОРЫ","КОМОР","КОМОР / КОМОРЫ","174",0,1]
[49,0,null,null,95,"КОНГО","КОНГО","КОНГО","178",0,1]
[50,0,null,null,96,"КОНГО, ДЕМОКРАТИЧЕСКАЯ РЕСПУБЛИКА","КОНГО, ДЕМОКРАТИЯЛЫ? РЕСПУБЛИКА","КОНГО, ДЕМОКРАТИЯЛЫ? РЕСПУБЛИКА / КОНГО, ДЕМОКРАТИЧЕСКАЯ РЕСПУБЛИКА","180",0,1]
[113,0,null,null,97,"Корея, Народно-Демократическая  республика","Корея, Халықтық-Демократиялық республика","Корея, Халықтық-Демократиялық республика / Корея, Народно-Демократическая  республика","408",0,1]
[206,0,null,null,98,"Королевство Эсватини","Эсватини Королдігі","Эсватини Королдігі / Королевство Эсватини","748",0,1]
[52,0,null,null,99,"КОСТА-РИКА","КОСТА-РИКА","КОСТА-РИКА","188",0,1]
[106,0,null,null,100,"КОТ-Д ИВУАР","КОТ-Д ИВУАР","КОТ-Д ИВУАР","384",0,1]
[54,0,null,null,101,"КУБА","КУБА","КУБА","192",0,1]
[115,0,null,null,102,"КУВЕЙТ","КУВЕЙТ","КУВЕЙТ","414",0,1]
[116,0,null,null,103,"КЫРГЫЗСТАН","КЫРГЫЗСТАН","КЫРГЫЗСТАН","417",1,1]
[301,0,null,null,104,"Кюрасао","Кюрасао","Кюрасао","531",0,1]
[117,0,null,null,105,"ЛАОССКАЯ НАРОДНО-ДЕМОКРАТИЧЕСКАЯ РЕСПУБЛИКА","ЛАОС ХАЛЫҚТЫҚ-ДЕМОКРАТИЯЛЫҚ РЕСПУБЛИКАСЫ","ЛАОС ХАЛЫҚТЫҚ-ДЕМОКРАТИЯЛЫҚ РЕСПУБЛИКАСЫ / ЛАОССКАЯ НАРОДНО-ДЕМОКРАТИЧЕСКАЯ РЕСПУБЛИКА","418",0,1]
[120,0,null,null,106,"ЛАТВИЯ","ЛАТВИЯ","ЛАТВИЯ","428",0,1]
[119,0,null,null,107,"ЛЕСОТО","ЛЕСОТО","ЛЕСОТО","426",0,1]
[121,0,null,null,108,"ЛИБЕРИЯ","ЛИБЕРИЯ","ЛИБЕРИЯ","430",0,1]
[118,0,null,null,109,"ЛИВАН","ЛИВАН","ЛИВАН","422",0,1]
[122,0,null,null,110,"ЛИВИЯ","ЛИВИЯ","ЛИВИЯ","434",0,1]
[124,0,null,null,111,"ЛИТВА","ЛИТВА","ЛИТВА","440",0,1]
[123,0,null,null,112,"ЛИХТЕНШТЕЙН","ЛИХТЕНШТЕЙН","ЛИХТЕНШТЕЙН","438",0,1]
[125,0,null,null,113,"ЛЮКСЕМБУРГ","ЛЮКСЕМБУРГ","ЛЮКСЕМБУРГ","442",0,1]
[310,0,null,null,114,"м/о Азиатский банк инфраструктурных инвестиций","м/о Азиатский банк инфраструктурных инвестиций","м/о Азиатский банк инфраструктурных инвестиций","MO1",0,1]
[311,0,null,null,115,"м/о Антикризисный фонд ЕврАзЭС","м/о Антикризисный фонд ЕврАзЭС","м/о Антикризисный фонд ЕврАзЭС","MO2",0,1]
[306,0,null,null,116,"м/о Евразийский Банк Развития","м/о Евразийский Банк Развития","м/о Евразийский Банк Развития"," ",0,1]
[315,0,null,null,117,"м/о Международная Ассоцияация Развития","м/о Международная Ассоцияация Развития","м/о Международная Ассоцияация Развития","MO3",0,1]
[135,0,null,null,118,"МАВРИКИЙ","МАВРИКИЙ","МАВРИКИЙ","480",0,1]
[134,0,null,null,119,"МАВРИТАНИЯ","МАВРИТАНИЯ","МАВРИТАНИЯ","478",0,1]
[127,0,null,null,120,"МАДАГАСКАР","МАДАГАСКАР","МАДАГАСКАР","450",0,1]
[293,0,null,null,121,"МАЙОТТА","МАЙОТТА","МАЙОТТА","175",0,1]
[126,0,null,null,122,"МАКАО - СПЕЦИАЛЬНЫЙ АДМИНИСТРАТИВНЫЙ РЕГИОН В КИТАЕ","МАКАО - ҚЫТАЙДАҒЫ АРНАЙЫ ӘКІМШІЛІК АЙМАҚ","МАКАО - ҚЫТАЙДАҒЫ АРНАЙЫ ӘКІМШІЛІК АЙМАҚ / МАКАО - СПЕЦИАЛЬНЫЙ АДМИНИСТРАТИВНЫЙ РЕГИОН В КИТАЕ","446",0,1]
[224,0,null,null,123,"МАКЕДОНИЯ, БЫВШАЯ ЮГОСЛАВСКАЯ РЕСПУБЛИКА","МАКЕДОНИЯ, Б?РЫН?Ы ЮГОСЛАВИЯ РЕСПУБЛИКАСЫ","МАКЕДОНИЯ, Б?РЫН?Ы ЮГОСЛАВИЯ РЕСПУБЛИКАСЫ / МАКЕДОНИЯ, БЫВШАЯ ЮГОСЛАВСКАЯ РЕСПУБЛИКА","807",0,1]
[128,0,null,null,124,"МАЛАВИ","МАЛАВИ","МАЛАВИ","454",0,1]
[129,0,null,null,125,"МАЛАЙЗИЯ","МАЛАЙЗИЯ","МАЛАЙЗИЯ","458",0,1]
[131,0,null,null,126,"МАЛИ","МАЛИ","МАЛИ","466",0,1]
[130,0,null,null,127,"МАЛЬДИВЫ","МАЛЬДИВЫ","МАЛЬДИВЫ","462",0,1]
[132,0,null,null,128,"МАЛЬТА","МАЛЬТА","МАЛЬТА","470",0,1]
[142,0,null,null,129,"МАРОККО","МАРОККО",{"$f":"CONCATENATE(IF(C131<>\"\",CONCATENATE(C131,\" \"),\"\"),IF(p_language_current_id=1,F131,IF(p_language_current_id=2,G131,IF(F131=G131,F131,CONCATENATE(G131,IF(B131=0,\" / \",CHAR(10)),F131)))),IF(D131<>\"\",CONCATENATE(\" \",D131),\"\"))","v":"МАРОККО"},"504",0,1]
[133,0,null,null,130,"МАРТИНИКА","МАРТИНИКА","МАРТИНИКА","474",0,1]
[163,0,null,null,131,"МАРШАЛЛОВЫ ОСТРОВА","МАРШАЛ АРАЛДАРЫ","МАРШАЛ АРАЛДАРЫ / МАРШАЛЛОВЫ ОСТРОВА","584",0,1]
[242,0,null,null,132,"МЕЖДУНАРОДНЫЕ ОРГАНИЗАЦИИ","ХАЛЫҚАРАЛЫҚ ҰЙЫМДАР","ХАЛЫҚАРАЛЫҚ ҰЙЫМДАР / МЕЖДУНАРОДНЫЕ ОРГАНИЗАЦИИ","999",0,1]
[136,0,null,null,133,"МЕКСИКА","МЕКСИКА","МЕКСИКА","484",0,1]
[162,0,null,null,134,"МИКРОНЕЗИЯ, ФЕДЕРАТИВНЫЕ ШТАТЫ","МИКРОНЕЗИЯ, ФЕДЕРАЦИЯЛЫ? ШТАТТАР","МИКРОНЕЗИЯ, ФЕДЕРАЦИЯЛЫ? ШТАТТАР / МИКРОНЕЗИЯ, ФЕДЕРАТИВНЫЕ ШТАТЫ","583",0,1]
[143,0,null,null,135,"МОЗАМБИК","МОЗАМБИК","МОЗАМБИК","508",0,1]
[140,0,null,null,136,"МОЛДАВИЯ, РЕСПУБЛИКА МОЛДОВА","МОЛДАВИЯ, МОЛДОВА РЕСПУБЛИКАСЫ","МОЛДАВИЯ, МОЛДОВА РЕСПУБЛИКАСЫ / МОЛДАВИЯ, РЕСПУБЛИКА МОЛДОВА","498",1,1]
[138,0,null,null,137,"МОНАКО","МОНАКО","МОНАКО","492",0,1]
[139,0,null,null,138,"МОНГОЛИЯ","МОНГОЛИЯ","МОНГОЛИЯ","496",0,1]
[141,0,null,null,139,"МОНТСЕРРАТ","МОНТСЕРРАТ","МОНТСЕРРАТ","500",0,1]
[31,0,null,null,140,"МЬЯНМА","МЬЯНМА","МЬЯНМА","104",0,1]
[145,0,null,null,141,"НАМИБИЯ","НАМИБИЯ","НАМИБИЯ","516",0,1]
[146,0,null,null,142,"НАУРУ","НАУРУ","НАУРУ","520",0,1]
[147,0,null,null,143,"НЕПАЛ","НЕПАЛ","НЕПАЛ","524",0,1]
[155,0,null,null,144,"НИГЕР","НИГЕР","НИГЕР","562",0,1]
[156,0,null,null,145,"НИГЕРИЯ","НИГЕРИЯ","НИГЕРИЯ","566",0,1]
[148,0,null,null,146,"НИДЕРЛАНДЫ","НИДЕРЛАНД","НИДЕРЛАНД / НИДЕРЛАНДЫ","528",0,1]
[154,0,null,null,147,"НИКАРАГУА","НИКАРАГУА","НИКАРАГУА","558",0,1]
[157,0,null,null,148,"НИУЭ","НИУЭ","НИУЭ","570",0,1]
[153,0,null,null,149,"НОВАЯ ЗЕЛАНДИЯ","ЖАҢА ЗЕЛАНДИЯ","ЖАҢА ЗЕЛАНДИЯ / НОВАЯ ЗЕЛАНДИЯ","554",0,1]
[151,0,null,null,150,"НОВАЯ КАЛЕДОНИЯ","ЖАҢА КАЛЕДОНИЯ","ЖАҢА КАЛЕДОНИЯ / НОВАЯ КАЛЕДОНИЯ","540",0,1]
[159,0,null,null,151,"НОРВЕГИЯ","НОРВЕГИЯ","НОРВЕГИЯ","578",0,1]
[227,0,null,null,152,"НОРМАНДСКИЕ ОСТРОВА","НОРМАНДСКИЕ ОСТРОВА","НОРМАНДСКИЕ ОСТРОВА","830",0,1]
[216,0,null,null,153,"ОБЪЕДИНЕННЫЕ АРАБСКИЕ ЭМИРАТЫ","БІРІККЕН АРАБ ?МІРЛІКТЕРІ","БІРІККЕН АРАБ ?МІРЛІКТЕРІ / ОБЪЕДИНЕННЫЕ АРАБСКИЕ ЭМИРАТЫ","784",0,1]
[144,0,null,null,154,"ОМАН","ОМАН","ОМАН","512",0,1]
[23,0,null,null,155,"Остров Буве","Буве аралы","Буве аралы / Остров Буве","074",0,1]
[289,0,null,null,156,"ОСТРОВ ГЕРНСИ","ГЕРНСИ АРАЛЫ","ГЕРНСИ АРАЛЫ / ОСТРОВ ГЕРНСИ","831",0,1]
[244,0,null,null,157,"ОСТРОВ ДЖЕРСИ","ДЖЕРСИ АРАЛЫ","ДЖЕРСИ АРАЛЫ / ОСТРОВ ДЖЕРСИ","832",0,1]
[228,0,null,null,158,"ОСТРОВ МЭН","МЭН АРАЛЫ","МЭН АРАЛЫ / ОСТРОВ МЭН","833",0,1]
[158,0,null,null,159,"ОСТРОВ НОРФОЛК","НОРФОЛК АРАЛЫ","НОРФОЛК АРАЛЫ / ОСТРОВ НОРФОЛК","574",0,1]
[45,0,null,null,160,"Остров Рождества","Остров Рождества","Остров Рождества","162",0,1]
[93,0,null,null,161,"Остров Херд и Острова Макдональд","Херд аралы және Макдональд аралдары","Херд аралы және Макдональд аралдары / Остров Херд и Острова Макдональд","334",0,1]
[38,0,null,null,162,"Острова Кайман","Кайман аралдары","Кайман аралдары / Острова Кайман","136",0,1]
[51,0,null,null,163,"ОСТРОВА КУКА","КУК АРАЛДАРЫ","КУК АРАЛДАРЫ / ОСТРОВА КУКА","184",0,1]
[137,0,null,null,164,"ОСТРОВА МИДУЭЙ","ОСТРОВА МИДУЭЙ","ОСТРОВА МИДУЭЙ","",0,1]
[283,0,null,null,165,"ОСТРОВА СВЯТОЙ ЕЛЕНЫ, ВОЗНЕСЕНИЯ И ТРИСТАН-ДА-КУНЬЯ","ӘУЛИЕ ЕЛЕНА, ВОЗНЕСЕНИЯ ЖӘНЕ ТРИСТАН ДА КУНЬЯ АРАЛДАРЫ","ӘУЛИЕ ЕЛЕНА, ВОЗНЕСЕНИЯ ЖӘНЕ ТРИСТАН ДА КУНЬЯ АРАЛДАРЫ / ОСТРОВА СВЯТОЙ ЕЛЕНЫ, ВОЗНЕСЕНИЯ И ТРИСТАН-ДА-КУНЬЯ","654",0,1]
[220,0,null,null,166,"ОСТРОВА ТЕРКС И КАЙКОС","ТЕРКС ПЕН КАЙКОС АРАЛДАРЫ","ТЕРКС ПЕН КАЙКОС АРАЛДАРЫ / ОСТРОВА ТЕРКС И КАЙКОС","796",0,1]
[165,0,null,null,167,"ПАКИСТАН","ПӘКСТАН","ПӘКСТАН / ПАКИСТАН","586",0,1]
[164,0,null,null,168,"ПАЛАУ","ПАЛАУ","ПАЛАУ","585",0,1]
[294,0,null,null,169,"ПАЛЕСТИНСКАЯ ТЕРРИТОРИЯ, ОККУПИРОВАННАЯ","ПАЛЕСТИНА АУМАҒЫ, БАСЫП АЛЫНҒАН","ПАЛЕСТИНА АУМАҒЫ, БАСЫП АЛЫНҒАН / ПАЛЕСТИНСКАЯ ТЕРРИТОРИЯ, ОККУПИРОВАННАЯ","275",0,1]
[166,0,null,null,170,"ПАНАМА","ПАНАМА","ПАНАМА","591",0,1]
[167,0,null,null,171,"ПАПУА-НОВАЯ ГВИНЕЯ","ПАПУА-ЖА?А ГВИНЕЯ","ПАПУА-ЖА?А ГВИНЕЯ / ПАПУА-НОВАЯ ГВИНЕЯ","598",0,1]
[168,0,null,null,172,"ПАРАГВАЙ","ПАРАГВАЙ","ПАРАГВАЙ","600",0,1]
[169,0,null,null,173,"ПЕРУ","ПЕРУ","ПЕРУ","604",0,1]
[171,0,null,null,174,"ПИТКЭРН","ПИТКЭРН","ПИТКЭРН","612",0,1]
[172,0,null,null,175,"ПОЛЬША","ПОЛЬША","ПОЛЬША","616",0,1]
[173,0,null,null,176,"ПОРТУГАЛИЯ","ПОРТУГАЛИЯ","ПОРТУГАЛИЯ","620",0,1]
[299,0,null,null,177,"Прочие","Басқалар","Басқалар / Прочие"," ",0,1]
[176,0,null,null,178,"ПУЭРТО-РИКО","ПУЭРТО-РИКО","ПУЭРТО-РИКО","630",0,1]
[91,0,null,null,179,"РЕСПУБЛИКА ГАЙАНА","ГАЙАНА РЕСПУБЛИКАСЫ","ГАЙАНА РЕСПУБЛИКАСЫ / РЕСПУБЛИКА ГАЙАНА","328",0,1]
[114,0,null,null,180,"РЕСПУБЛИКА КОРЕЯ (ЮЖНАЯ)","РЕСПУБЛИКА КОРЕЯ (ЮЖНАЯ)","РЕСПУБЛИКА КОРЕЯ (ЮЖНАЯ)","410",0,1]
[56,0,null,null,181,"РЕСПУБЛИКА ЧЕХИЯ","ЧЕХИЯ РЕСПУБЛИКАСЫ","ЧЕХИЯ РЕСПУБЛИКАСЫ / РЕСПУБЛИКА ЧЕХИЯ","203",0,1]
[62,0,null,null,182,"РЕСПУБЛИКА ЭЛЬ-САЛЬВАДОР","ЭЛЬ-САЛЬВАДОР РЕСПУБЛИКАСЫ","ЭЛЬ-САЛЬВАДОР РЕСПУБЛИКАСЫ / РЕСПУБЛИКА ЭЛЬ-САЛЬВАДОР","222",0,1]
[178,0,null,null,183,"РЕЮНЬОН","РЕЮНЬОН","РЕЮНЬОН","638",0,1]
[180,0,null,null,184,"РОССИЙСКАЯ ФЕДЕРАЦИЯ","РЕСЕЙ ФЕДЕРАЦИЯСЫ","РЕСЕЙ ФЕДЕРАЦИЯСЫ / РОССИЙСКАЯ ФЕДЕРАЦИЯ","643",1,1]
[181,0,null,null,185,"РУАНДА","РУАНДА","РУАНДА","646",0,1]
[179,0,null,null,186,"РУМЫНИЯ","РУМЫНИЯ","РУМЫНИЯ","642",0,1]
[238,0,null,null,187,"САМОА","САМОА","САМОА","882",0,1]
[188,0,null,null,188,"САН-МАРИНО","САН-МАРИНО","САН-МАРИНО","674",0,1]
[189,0,null,null,189,"САН-ТОМЕ И ПРИНСИПИ","САН-ТОМЕ Ж?НЕ ПРИНСИПИ","САН-ТОМЕ Ж?НЕ ПРИНСИПИ / САН-ТОМЕ И ПРИНСИПИ","678",0,1]
[190,0,null,null,190,"САУДОВСКАЯ АРАВИЯ","САУД АРАВИЯСЫ","САУД АРАВИЯСЫ / САУДОВСКАЯ АРАВИЯ","682",0,1]
[94,0,null,null,191,"СВЯТОЙ ПРЕСТОЛ (ГОРОД-ГОСУДАРСТВО ВАТИКАН)","ҚАСИЕТТІ ТАҚ (ВАТИКАН ҚАЛА-МЕМЛЕКЕТІ)","ҚАСИЕТТІ ТАҚ (ВАТИКАН ҚАЛА-МЕМЛЕКЕТІ) / СВЯТОЙ ПРЕСТОЛ (ГОРОД-ГОСУДАРСТВО ВАТИКАН)","336",0,1]
[160,0,null,null,192,"СЕВЕРНЫЕ МАРИАНСКИЕ О-ВА","СОЛТЇСТІК МАРИАНА АРАЛДАРЫ","СОЛТЇСТІК МАРИАНА АРАЛДАРЫ / СЕВЕРНЫЕ МАРИАНСКИЕ О-ВА","580",0,1]
[192,0,null,null,193,"СЕЙШЕЛЬСКИЕ ОСТРОВА","СЕЙШЕЛ АРАЛДАРЫ",{"$f":"CONCATENATE(IF(C195<>\"\",CONCATENATE(C195,\" \"),\"\"),IF(p_language_current_id=1,F195,IF(p_language_current_id=2,G195,IF(F195=G195,F195,CONCATENATE(G195,IF(B195=0,\" / \",CHAR(10)),F195)))),IF(D195<>\"\",CONCATENATE(\" \",D195),\"\"))","v":"СЕЙШЕЛ АРАЛДАРЫ / СЕЙШЕЛЬСКИЕ ОСТРОВА"},"690",0,1]
[284,0,null,null,194,"СЕКТОР ГАЗА (бывш. ПАЛЕСТИНСКИЕ ТЕРРИТОРИИ)","СЕКТОР ГАЗА (бывш. ПАЛЕСТИНСКИЕ ТЕРРИТОРИИ)","СЕКТОР ГАЗА (бывш. ПАЛЕСТИНСКИЕ ТЕРРИТОРИИ)","274",0,1]
[330,0,null,null,195,"Сен-Бартелеми","Сен-Бартелеми","Сен-Бартелеми","652",0,1]
[191,0,null,null,196,"СЕНЕГАЛ","СЕНЕГАЛ","СЕНЕГАЛ","686",0,1]
[329,0,null,null,197,"СЕН-МАРТЕН","СЕН-МАРТЕН","СЕН-МАРТЕН","663",0,1]
[187,0,null,null,198,"СЕНТ-ВИНСЕНТ И ГРЕНАДИНЫ","СЕНТ-ВИНСЕНТ Ж?НЕ ГРЕНАДИНДЕР","СЕНТ-ВИНСЕНТ Ж?НЕ ГРЕНАДИНДЕР / СЕНТ-ВИНСЕНТ И ГРЕНАДИНЫ","670",0,1]
[183,0,null,null,199,"СЕНТ-КИТС И НЕВИС","СЕНТ-КИТС Ж?НЕ НЕВИС","СЕНТ-КИТС Ж?НЕ НЕВИС / СЕНТ-КИТС И НЕВИС","659",0,1]
[185,0,null,null,200,"СЕНТ-ЛЮСИЯ","СЕНТ-ЛЮСИЯ","СЕНТ-ЛЮСИЯ","662",0,1]
[186,0,null,null,201,"СЕНТ-ПЬЕР И МИКЕЛОН","СЕНТ-ПЬЕР Ж?НЕ МИКЕЛОН","СЕНТ-ПЬЕР Ж?НЕ МИКЕЛОН / СЕНТ-ПЬЕР И МИКЕЛОН","666",0,1]
[296,0,null,null,202,"СЕРБИЯ","СЕРБИЯ","СЕРБИЯ","688",0,1]
[194,0,null,null,203,"СИНГАПУР","СИНГАПУР","СИНГАПУР","702",0,1]
[302,0,null,null,204,"СИНТ-МАРТЕН (ГОЛЛАНДСКАЯ ЧАСТЬ)","СИНТ-МАРТЕН (ГОЛЛАНДИЯ БӨЛІГІ)","СИНТ-МАРТЕН (ГОЛЛАНДИЯ БӨЛІГІ) / СИНТ-МАРТЕН (ГОЛЛАНДСКАЯ ЧАСТЬ)","534",0,1]
[209,0,null,null,205,"СИРИЙСКАЯ АРАБСКАЯ РЕСПУБЛИКА","СИРИЯ АРАБ РЕСПУБЛИКАСЫ","СИРИЯ АРАБ РЕСПУБЛИКАСЫ / СИРИЙСКАЯ АРАБСКАЯ РЕСПУБЛИКА","760",0,1]
[195,0,null,null,206,"СЛОВАКИЯ","СЛОВАКИЯ","СЛОВАКИЯ","703",0,1]
[197,0,null,null,207,"СЛОВЕНИЯ","СЛОВЕНИЯ","СЛОВЕНИЯ","705",0,1]
[226,0,null,null,208,"СОЕДИНЕННОЕ КОРОЛЕВСТВО","ҚҰРАМА КОРОЛДІГІ","ҚҰРАМА КОРОЛДІГІ / СОЕДИНЕННОЕ КОРОЛЕВСТВО","826",0,1]
[230,0,null,null,209,"СОЕДИНЕННЫЕ ШТАТЫ АМЕРИКИ","АМЕРИКА ҚҰРАМА ШТАТТАР","АМЕРИКА ҚҰРАМА ШТАТТАР / СОЕДИНЕННЫЕ ШТАТЫ АМЕРИКИ","840",0,1]
[27,0,null,null,210,"СОЛОМОНОВЫ ОСТРОВА","СОЛОМОН АРАЛДАРЫ","СОЛОМОН АРАЛДАРЫ / СОЛОМОНОВЫ ОСТРОВА","090",0,1]
[198,0,null,null,211,"СОМАЛИ","СОМАЛИ","СОМАЛИ","706",0,1]
[203,0,null,null,212,"СУДАН","СУДАН","СУДАН","729",0,1]
[204,0,null,null,213,"СУРИНАМ","СУРИНАМ","СУРИНАМ","740",0,1]
[193,0,null,null,214,"СЬЕРРА-ЛЕОНЕ","СЬЕРРА-ЛЕОНЕ","СЬЕРРА-ЛЕОНЕ","694",0,1]
[210,0,null,null,215,"ТАДЖИКИСТАН","ТӘЖІКСТАН","ТӘЖІКСТАН / ТАДЖИКИСТАН","762",1,1]
[44,0,null,null,216,"Тайвань, провинция Китая","Тайвань","Тайвань / Тайвань, провинция Китая","158",0,1]
[211,0,null,null,217,"ТАИЛАНД","ТАИЛАНД","ТАИЛАНД","764",0,1]
[229,0,null,null,218,"ТАНЗАНИЯ, ОБЪЕДИНЕННАЯ РЕСПУБЛИКА","ТАНЗАНИЯ, ҚҰРАМА РЕСПУБЛИКАСЫ","ТАНЗАНИЯ, ҚҰРАМА РЕСПУБЛИКАСЫ / ТАНЗАНИЯ, ОБЪЕДИНЕННАЯ РЕСПУБЛИКА","834",0,1]
[331,0,null,null,219,"Тимор-Лешти","Тимор-Лешти","Тимор-Лешти","626",0,1]
[212,0,null,null,220,"ТОГО","ТОГО","ТОГО","768",0,1]
[213,0,null,null,221,"ТОКЕЛАУ","ТОКЕЛАУ","ТОКЕЛАУ","772",0,1]
[214,0,null,null,222,"ТОНГА","ТОНГА","ТОНГА","776",0,1]
[215,0,null,null,223,"ТРИНИДАД И ТОБАГО","ТРИНИДАД ЖӘНЕ ТОБАГО","ТРИНИДАД ЖӘНЕ ТОБАГО / ТРИНИДАД И ТОБАГО","780",0,1]
[221,0,null,null,224,"ТУВАЛУ","ТУВАЛУ","ТУВАЛУ","798",0,1]
[217,0,null,null,225,"ТУНИС","ТУНИС","ТУНИС","788",0,1]
[219,0,null,null,226,"ТУРКМЕНИСТАН","ТҮРКМЕНСТАН","ТҮРКМЕНСТАН / ТУРКМЕНИСТАН","795",1,1]
[218,0,null,null,227,"ТУРЦИЯ","ТҮРКИЯ","ТҮРКИЯ / ТУРЦИЯ","792",0,1]
[222,0,null,null,228,"УГАНДА","УГАНДА","УГАНДА","800",0,1]
[234,0,null,null,229,"УЗБЕКИСТАН","ӨЗБЕКСТАН","ӨЗБЕКСТАН / УЗБЕКИСТАН","860",1,1]
[223,0,null,null,230,"УКРАИНА","УКРАИНА","УКРАИНА","804",1,1]
[237,0,null,null,231,"УОЛЛИС И ФУТУНА","УОЛЛИС ПЕН ФУТУНА","УОЛЛИС ПЕН ФУТУНА / УОЛЛИС И ФУТУНА","876",0,1]
[233,0,null,null,232,"УРУГВАЙ","УРУГВАЙ","УРУГВАЙ","858",0,1]
[236,0,null,null,233,"УЭЙК","УЭЙК","УЭЙК","872",0,1]
[67,0,null,null,234,"ФАРЕРСКИЕ ОСТРОВА","ФАРЕР АРАЛДАРЫ","ФАРЕР АРАЛДАРЫ / ФАРЕРСКИЕ ОСТРОВА","234",0,1]
[69,0,null,null,235,"ФИДЖИ","ФИДЖИ","ФИДЖИ","242",0,1]
[170,0,null,null,236,"ФИЛИППИНЫ","ФИЛИППИН","ФИЛИППИН / ФИЛИППИНЫ","608",0,1]
[70,0,null,null,237,"ФИНЛЯНДИЯ","ФИНЛЯНДИЯ","ФИНЛЯНДИЯ","246",0,1]
[68,0,null,null,238,"ФОЛКЛЕНДСКИЕ О-ВА ( МАЛЬВИНСКИЕ)","ФОЛКЛЕНД (МАЛЬВИН) АРАЛДАРЫ","ФОЛКЛЕНД (МАЛЬВИН) АРАЛДАРЫ / ФОЛКЛЕНДСКИЕ О-ВА ( МАЛЬВИНСКИЕ)","238",0,1]
[71,0,null,null,239,"ФРАНЦИЯ","ФРАНЦИЯ","ФРАНЦИЯ","250",0,1]
[72,0,null,null,240,"ФРАНЦУЗСКАЯ ГВИАНА","ФРАНЦУЗ ГВИАНАСЫ","ФРАНЦУЗ ГВИАНАСЫ / ФРАНЦУЗСКАЯ ГВИАНА","254",0,1]
[73,0,null,null,241,"ФРАНЦУЗСКАЯ ПОЛИНЕЗИЯ","ФРАНЦУЗ ПОЛИНЕЗИЯСЫ","ФРАНЦУЗ ПОЛИНЕЗИЯСЫ / ФРАНЦУЗСКАЯ ПОЛИНЕЗИЯ","258",0,1]
[74,0,null,null,242,"Французские южные территории","Францз оңтүстік аумақтары","Францз оңтүстік аумақтары / Французские южные территории","260",0,1]
[53,0,null,null,243,"ХОРВАТИЯ","ХОРВАТИЯ","ХОРВАТИЯ","191",0,1]
[39,0,null,null,244,"ЦЕНТРАЛЬНО-АФРИКАНСКАЯ РЕСПУБЛИКА","ОРТАЛЫҚ АФРИКА РЕСПУБЛИКАСЫ","ОРТАЛЫҚ АФРИКА РЕСПУБЛИКАСЫ / ЦЕНТРАЛЬНО-АФРИКАНСКАЯ РЕСПУБЛИКА","140",0,1]
[41,0,null,null,245,"ЧАД","ЧАД","ЧАД","148",0,1]
[297,0,null,null,246,"Черногория","Черногория","Черногория","499",0,1]
[42,0,null,null,247,"ЧИЛИ","ЧИЛИ","ЧИЛИ","152",0,1]
[208,0,null,null,248,"ШВЕЙЦАРИЯ","ШВЕЙЦАРИЯ","ШВЕЙЦАРИЯ","756",0,1]
[207,0,null,null,249,"ШВЕЦИЯ","ШВЕЦИЯ","ШВЕЦИЯ","752",0,1]
[205,0,null,null,250,"ШПИЦБЕРГЕН И ЯН-МАЙЕН","ШПИЦБЕРГЕН МЕН ЯН-МАЙЕН","ШПИЦБЕРГЕН МЕН ЯН-МАЙЕН / ШПИЦБЕРГЕН И ЯН-МАЙЕН","744",0,1]
[40,0,null,null,251,"ШРИ-ЛАНКА","ШРИ-ЛАНКА","ШРИ-ЛАНКА","144",0,1]
[61,0,null,null,252,"ЭКВАДОР","ЭКВАДОР","ЭКВАДОР","218",0,1]
[63,0,null,null,253,"ЭКВАТОРИАЛЬНАЯ ГВИНЕЯ","ЭКВАТОРИАЛДЫ? ГВИНЕЯ","ЭКВАТОРИАЛДЫ? ГВИНЕЯ / ЭКВАТОРИАЛЬНАЯ ГВИНЕЯ","226",0,1]
[292,0,null,null,254,"ЭЛАНДСКИЕ ОСТРОВА","АЛАНД АРАЛДАРЫ","АЛАНД АРАЛДАРЫ / ЭЛАНДСКИЕ ОСТРОВА","248",0,1]
[65,0,null,null,255,"ЭРИТРЕЯ","ЭРИТРЕЯ","ЭРИТРЕЯ","232",0,1]
[66,0,null,null,256,"ЭСТОНИЯ","ЭСТОНИЯ","ЭСТОНИЯ","233",0,1]
[64,0,null,null,257,"ЭФИОПИЯ","ЭФИОПИЯ",{"$f":"CONCATENATE(IF(C259<>\"\",CONCATENATE(C259,\" \"),\"\"),IF(p_language_current_id=1,F259,IF(p_language_current_id=2,G259,IF(F259=G259,F259,CONCATENATE(G259,IF(B259=0,\" / \",CHAR(10)),F259)))),IF(D259<>\"\",CONCATENATE(\" \",D259),\"\"))","v":"ЭФИОПИЯ"},"231",0,1]
[295,0,null,null,258,"Южная Джорджия и Южные Сандвичевы острова","Оңтүстік Джорджия және Оңтүстік Сандвич Аралдары","Оңтүстік Джорджия және Оңтүстік Сандвич Аралдары / Южная Джорджия и Южные Сандвичевы острова","239",0,1]
[199,0,null,null,259,"ЮЖНО-АФРИКАНСКАЯ РЕСПУБЛИКА","ОҢТҮСТІК АФРИКА РЕСПУБЛИКАСЫ","ОҢТҮСТІК АФРИКА РЕСПУБЛИКАСЫ / ЮЖНО-АФРИКАНСКАЯ РЕСПУБЛИКА","710",0,1]
[327,0,null,null,260,"ЮЖНЫЙ СУДАН","ОҢТҮСТІК СУДАН","ОҢТҮСТІК СУДАН / ЮЖНЫЙ СУДАН","728",0,1]
[107,0,null,null,261,"ЯМАЙКА","ЯМАЙКА","ЯМАЙКА","388",0,1]
[108,0,null,null,262,"ЯПОНИЯ","ЖАПОНИЯ","ЖАПОНИЯ / ЯПОНИЯ","392",0,1]